Workbook

Sheet ASE bank transactions (2024)
A1: Bank Acct | B1: Date | C1: Description | D1: Category | E1: Amount | F1: BA Balance | G1: WF Balance | H1: Who | I1: Bill to | J1: Class | K1: Charge Receipt
A2: WF | B2: 2024-05-07 | C2: ZELLE TO MICHAEL L. STUCK CPA PC ON 05/07 REF #PP0S7GDB3C FOR PROFESSIONAL SERVICES 2023 AVIAGLOBAL | D2: Accounting/Tax Prep | E2: -650 | F2: =IF(Table147[[#This Row],[Bank Acct]]=LEFT(Table147[[#Headers],[BA Balance]],2),SUMIF(Table147[[#Headers],[Bank Acct]]:Table147[[#This Row],[Bank Acct]],Table147[[#This Row],[Bank Acct]],Table147[[#Headers],[Amount]]:Table147[[#This Row],[Amount]]),"") ->  | G2: =IF(Table147[[#This Row],[Bank Acct]]=LEFT(Table147[[#Headers],[WF Balance]],2),SUMIF(Table147[[#Headers],[Bank Acct]]:Table147[[#This Row],[Bank Acct]],Table147[[#This Row],[Bank Acct]],Table147[[#Headers],[Amount]]:Table147[[#This Row],[Amount]]),"") -> -650 | I2: AE | J2: Taxes
D3: Accounting/Tax Prep | E3: =SUM(E2) -> -650 | G3: =IF(Table147[[#This Row],[Bank Acct]]=LEFT(Table147[[#Headers],[WF Balance]],2),SUMIF(Table147[[#Headers],[Bank Acct]]:Table147[[#This Row],[Bank Acct]],Table147[[#This Row],[Bank Acct]],Table147[[#Headers],[Amount]]:Table147[[#This Row],[Amount]]),"") -> 
A4: BA | B4: 2024-01-02 | C4: External transfer fee - Next Day - 12/29/2023 Confirmation: 471140774 | D4: Bank Charges | E4: -5 | F4: =IF(Table147[[#This Row],[Bank Acct]]=LEFT(Table147[[#Headers],[BA Balance]],2),SUMIF(Table147[[#Headers],[Bank Acct]]:Table147[[#This Row],[Bank Acct]],Table147[[#This Row],[Bank Acct]],Table147[[#Headers],[Amount]]:Table147[[#This Row],[Amount]]),"") -> -5 | G4: =IF(Table147[[#This Row],[Bank Acct]]=LEFT(Table147[[#Headers],[WF Balance]],2),SUMIF(Table147[[#Headers],[Bank Acct]]:Table147[[#This Row],[Bank Acct]],Table147[[#This Row],[Bank Acct]],Table147[[#Headers],[Amount]]:Table147[[#This Row],[Amount]]),"") ->  | H4: =IFERROR(INDEX([1]Lookup!$B$2:$C$7,MATCH(RIGHT(TRIM(Table147[[#This Row],[Description]]),4),[1]Lookup!$B$2:$B$7,0),2),"") ->  | I4: AE | J4: Bank Charge | K4: None available
A5: BA | B5: 2024-01-02 | C5: INTERNATIONAL TRANSACTION FEE 01/02 OWL FOR THUNDERBI WIESBADEN 00 DEBIT CARD *7429 | D5: Bank Charges | E5: -0.33 | F5: =IF(Table147[[#This Row],[Bank Acct]]=LEFT(Table147[[#Headers],[BA Balance]],2),SUMIF(Table147[[#Headers],[Bank Acct]]:Table147[[#This Row],[Bank Acct]],Table147[[#This Row],[Bank Acct]],Table147[[#Headers],[Amount]]:Table147[[#This Row],[Amount]]),"") -> -5.33 | G5: =IF(Table147[[#This Row],[Bank Acct]]=LEFT(Table147[[#Headers],[WF Balance]],2),SUMIF(Table147[[#Headers],[Bank Acct]]:Table147[[#This Row],[Bank Acct]],Table147[[#This Row],[Bank Acct]],Table147[[#Headers],[Amount]]:Table147[[#This Row],[Amount]]),"") ->  | H5: =IFERROR(INDEX([1]Lookup!$B$2:$C$7,MATCH(RIGHT(TRIM(Table147[[#This Row],[Description]]),4),[1]Lookup!$B$2:$B$7,0),2),"") -> FWC | I5: AE | J5: Bank Charge | K5: 240103 - INTERNATIONAL TRANSACTION FEE OWL FOR THUNDERBI.pdf
A6: BA | B6: 2024-01-02 | C6: Monthly Fee Business Adv Relationship | D6: Bank Charges | E6: -29.95 | F6: =IF(Table147[[#This Row],[Bank Acct]]=LEFT(Table147[[#Headers],[BA Balance]],2),SUMIF(Table147[[#Headers],[Bank Acct]]:Table147[[#This Row],[Bank Acct]],Table147[[#This Row],[Bank Acct]],Table147[[#Headers],[Amount]]:Table147[[#This Row],[Amount]]),"") -> -35.28 | G6: =IF(Table147[[#This Row],[Bank Acct]]=LEFT(Table147[[#Headers],[WF Balance]],2),SUMIF(Table147[[#Headers],[Bank Acct]]:Table147[[#This Row],[Bank Acct]],Table147[[#This Row],[Bank Acct]],Table147[[#Headers],[Amount]]:Table147[[#This Row],[Amount]]),"") ->  | H6: =IFERROR(INDEX([1]Lookup!$B$2:$C$7,MATCH(RIGHT(TRIM(Table147[[#This Row],[Description]]),4),[1]Lookup!$B$2:$B$7,0),2),"") ->  | I6: AE | J6: Bank Charge | K6: N/A
A7: BA | B7: 2024-01-29 | C7: External transfer fee - Next Day - 01/26/2024 Confirmation: 475021948 | D7: Bank Charges | E7: -5 | F7: =IF(Table147[[#This Row],[Bank Acct]]=LEFT(Table147[[#Headers],[BA Balance]],2),SUMIF(Table147[[#Headers],[Bank Acct]]:Table147[[#This Row],[Bank Acct]],Table147[[#This Row],[Bank Acct]],Table147[[#Headers],[Amount]]:Table147[[#This Row],[Amount]]),"") -> -40.28 | G7: =IF(Table147[[#This Row],[Bank Acct]]=LEFT(Table147[[#Headers],[WF Balance]],2),SUMIF(Table147[[#Headers],[Bank Acct]]:Table147[[#This Row],[Bank Acct]],Table147[[#This Row],[Bank Acct]],Table147[[#Headers],[Amount]]:Table147[[#This Row],[Amount]]),"") ->  | H7: =IFERROR(INDEX([1]Lookup!$B$2:$C$7,MATCH(RIGHT(TRIM(Table147[[#This Row],[Description]]),4),[1]Lookup!$B$2:$B$7,0),2),"") ->  | I7: AE | J7: Bank Charge | K7: None available
A8: BA | B8: 2024-02-01 | C8: Monthly Fee Business Adv Relationship | D8: Bank Charges | E8: -29.95 | F8: =IF(Table147[[#This Row],[Bank Acct]]=LEFT(Table147[[#Headers],[BA Balance]],2),SUMIF(Table147[[#Headers],[Bank Acct]]:Table147[[#This Row],[Bank Acct]],Table147[[#This Row],[Bank Acct]],Table147[[#Headers],[Amount]]:Table147[[#This Row],[Amount]]),"") -> -70.23 | G8: =IF(Table147[[#This Row],[Bank Acct]]=LEFT(Table147[[#Headers],[WF Balance]],2),SUMIF(Table147[[#Headers],[Bank Acct]]:Table147[[#This Row],[Bank Acct]],Table147[[#This Row],[Bank Acct]],Table147[[#Headers],[Amount]]:Table147[[#This Row],[Amount]]),"") ->  | H8: =IFERROR(INDEX([1]Lookup!$B$2:$C$7,MATCH(RIGHT(TRIM(Table147[[#This Row],[Description]]),4),[1]Lookup!$B$2:$B$7,0),2),"") ->  | I8: AE | J8: Bank Charge | K8: N/A
A9: WF | B9: 2024-02-15 | C9: CHECK # 3001 | D9: Bank Charges | E9: -35 | G9: =IF(Table147[[#This Row],[Bank Acct]]=LEFT(Table147[[#Headers],[WF Balance]],2),SUMIF(Table147[[#Headers],[Bank Acct]]:Table147[[#This Row],[Bank Acct]],Table147[[#This Row],[Bank Acct]],Table147[[#Headers],[Amount]]:Table147[[#This Row],[Amount]]),"") -> -685 | H9: =IFERROR(INDEX([1]Lookup!$B$2:$C$7,MATCH(RIGHT(TRIM(Table147[[#This Row],[Description]]),4),[1]Lookup!$B$2:$B$7,0),2),"") ->  | I9: AE | J9: Legal Fees
A10: BA | B10: 2024-03-01 | C10: Monthly Fee Business Adv Relationship | D10: Bank Charges | E10: -29.95 | F10: =IF(Table147[[#This Row],[Bank Acct]]=LEFT(Table147[[#Headers],[BA Balance]],2),SUMIF(Table147[[#Headers],[Bank Acct]]:Table147[[#This Row],[Bank Acct]],Table147[[#This Row],[Bank Acct]],Table147[[#Headers],[Amount]]:Table147[[#This Row],[Amount]]),"") -> -100.18 | G10: =IF(Table147[[#This Row],[Bank Acct]]=LEFT(Table147[[#Headers],[WF Balance]],2),SUMIF(Table147[[#Headers],[Bank Acct]]:Table147[[#This Row],[Bank Acct]],Table147[[#This Row],[Bank Acct]],Table147[[#Headers],[Amount]]:Table147[[#This Row],[Amount]]),"") ->  | H10: =IFERROR(INDEX([1]Lookup!$B$2:$C$7,MATCH(RIGHT(TRIM(Table147[[#This Row],[Description]]),4),[1]Lookup!$B$2:$B$7,0),2),"") ->  | I10: AE | J10: Bank Charge | K10: N/A
A11: BA | B11: 2024-04-01 | C11: Monthly Fee Business Adv Relationship | D11: Bank Charges | E11: -29.95 | F11: =IF(Table147[[#This Row],[Bank Acct]]=LEFT(Table147[[#Headers],[BA Balance]],2),SUMIF(Table147[[#Headers],[Bank Acct]]:Table147[[#This Row],[Bank Acct]],Table147[[#This Row],[Bank Acct]],Table147[[#Headers],[Amount]]:Table147[[#This Row],[Amount]]),"") -> -130.13 | G11: =IF(Table147[[#This Row],[Bank Acct]]=LEFT(Table147[[#Headers],[WF Balance]],2),SUMIF(Table147[[#Headers],[Bank Acct]]:Table147[[#This Row],[Bank Acct]],Table147[[#This Row],[Bank Acct]],Table147[[#Headers],[Amount]]:Table147[[#This Row],[Amount]]),"") ->  | H11: =IFERROR(INDEX([1]Lookup!$B$2:$C$7,MATCH(RIGHT(TRIM(Table147[[#This Row],[Description]]),4),[1]Lookup!$B$2:$B$7,0),2),"") ->  | I11: AE | J11: Bank Charge
A12: BA | B12: 2024-05-01 | C12: Monthly Fee Business Adv Relationship | D12: Bank Charges | E12: -29.95 | F12: =IF(Table147[[#This Row],[Bank Acct]]=LEFT(Table147[[#Headers],[BA Balance]],2),SUMIF(Table147[[#Headers],[Bank Acct]]:Table147[[#This Row],[Bank Acct]],Table147[[#This Row],[Bank Acct]],Table147[[#Headers],[Amount]]:Table147[[#This Row],[Amount]]),"") -> -160.08 | G12: =IF(Table147[[#This Row],[Bank Acct]]=LEFT(Table147[[#Headers],[WF Balance]],2),SUMIF(Table147[[#Headers],[Bank Acct]]:Table147[[#This Row],[Bank Acct]],Table147[[#This Row],[Bank Acct]],Table147[[#Headers],[Amount]]:Table147[[#This Row],[Amount]]),"") ->  | I12: AE | J12: Bank Charge
A13: BA | B13: 2024-06-03 | C13: Monthly Fee Business Adv Relationship | D13: Bank Charges | E13: -29.95 | F13: =IF(Table147[[#This Row],[Bank Acct]]=LEFT(Table147[[#Headers],[BA Balance]],2),SUMIF(Table147[[#Headers],[Bank Acct]]:Table147[[#This Row],[Bank Acct]],Table147[[#This Row],[Bank Acct]],Table147[[#Headers],[Amount]]:Table147[[#This Row],[Amount]]),"") -> -190.03 | G13: =IF(Table147[[#This Row],[Bank Acct]]=LEFT(Table147[[#Headers],[WF Balance]],2),SUMIF(Table147[[#Headers],[Bank Acct]]:Table147[[#This Row],[Bank Acct]],Table147[[#This Row],[Bank Acct]],Table147[[#Headers],[Amount]]:Table147[[#This Row],[Amount]]),"") ->  | I13: AE | J13: Bank Charge
A14: BA | B14: 2024-07-01 | C14: Monthly Fee Business Adv Relationship | D14: Bank Charges | E14: -29.95 | F14: =IF(Table147[[#This Row],[Bank Acct]]=LEFT(Table147[[#Headers],[BA Balance]],2),SUMIF(Table147[[#Headers],[Bank Acct]]:Table147[[#This Row],[Bank Acct]],Table147[[#This Row],[Bank Acct]],Table147[[#Headers],[Amount]]:Table147[[#This Row],[Amount]]),"") -> -219.98 | G14: =IF(Table147[[#This Row],[Bank Acct]]=LEFT(Table147[[#Headers],[WF Balance]],2),SUMIF(Table147[[#Headers],[Bank Acct]]:Table147[[#This Row],[Bank Acct]],Table147[[#This Row],[Bank Acct]],Table147[[#Headers],[Amount]]:Table147[[#This Row],[Amount]]),"") ->  | I14: AE | J14: Bank Charge
A15: BA | B15: 2024-08-01 | C15: Monthly Fee Business Adv Relationship | D15: Bank Charges | E15: -29.95 | F15: =IF(Table147[[#This Row],[Bank Acct]]=LEFT(Table147[[#Headers],[BA Balance]],2),SUMIF(Table147[[#Headers],[Bank Acct]]:Table147[[#This Row],[Bank Acct]],Table147[[#This Row],[Bank Acct]],Table147[[#Headers],[Amount]]:Table147[[#This Row],[Amount]]),"") -> -249.93 | G15: =IF(Table147[[#This Row],[Bank Acct]]=LEFT(Table147[[#Headers],[WF Balance]],2),SUMIF(Table147[[#Headers],[Bank Acct]]:Table147[[#This Row],[Bank Acct]],Table147[[#This Row],[Bank Acct]],Table147[[#Headers],[Amount]]:Table147[[#This Row],[Amount]]),"") ->  | I15: AE | J15: Bank Charge
A16: BA | B16: 2024-09-03 | C16: Monthly Fee Business Adv Relationship | D16: Bank Charges | E16: -29.95 | F16: =IF(Table147[[#This Row],[Bank Acct]]=LEFT(Table147[[#Headers],[BA Balance]],2),SUMIF(Table147[[#Headers],[Bank Acct]]:Table147[[#This Row],[Bank Acct]],Table147[[#This Row],[Bank Acct]],Table147[[#Headers],[Amount]]:Table147[[#This Row],[Amount]]),"") -> -279.88 | G16: =IF(Table147[[#This Row],[Bank Acct]]=LEFT(Table147[[#Headers],[WF Balance]],2),SUMIF(Table147[[#Headers],[Bank Acct]]:Table147[[#This Row],[Bank Acct]],Table147[[#This Row],[Bank Acct]],Table147[[#Headers],[Amount]]:Table147[[#This Row],[Amount]]),"") ->  | I16: AE | J16: Bank Charge
A17: WF | B17: 2024-09-12 | C17: WIRE TRANS SVC CHARGE - SEQUENCE: 240912079660 SRF# 2024091200011330 TRN#240912079660 RFB# 82040439 | D17: Bank Charges | E17: -15 | F17: =IF(Table147[[#This Row],[Bank Acct]]=LEFT(Table147[[#Headers],[BA Balance]],2),SUMIF(Table147[[#Headers],[Bank Acct]]:Table147[[#This Row],[Bank Acct]],Table147[[#This Row],[Bank Acct]],Table147[[#Headers],[Amount]]:Table147[[#This Row],[Amount]]),"") ->  | G17: =IF(Table147[[#This Row],[Bank Acct]]=LEFT(Table147[[#Headers],[WF Balance]],2),SUMIF(Table147[[#Headers],[Bank Acct]]:Table147[[#This Row],[Bank Acct]],Table147[[#This Row],[Bank Acct]],Table147[[#Headers],[Amount]]:Table147[[#This Row],[Amount]]),"") -> -700 | I17: AE | J17: Bank Charge
A18: WF | B18: 2024-09-13 | C18: WIRE TRANS SVC CHARGE - SEQUENCE: 240913071936 SRF# 2024091300012572 TRN#240913071936 RFB# 82043318 | D18: Bank Charges | E18: -15 | F18: =IF(Table147[[#This Row],[Bank Acct]]=LEFT(Table147[[#Headers],[BA Balance]],2),SUMIF(Table147[[#Headers],[Bank Acct]]:Table147[[#This Row],[Bank Acct]],Table147[[#This Row],[Bank Acct]],Table147[[#Headers],[Amount]]:Table147[[#This Row],[Amount]]),"") ->  | G18: =IF(Table147[[#This Row],[Bank Acct]]=LEFT(Table147[[#Headers],[WF Balance]],2),SUMIF(Table147[[#Headers],[Bank Acct]]:Table147[[#This Row],[Bank Acct]],Table147[[#This Row],[Bank Acct]],Table147[[#Headers],[Amount]]:Table147[[#This Row],[Amount]]),"") -> -715 | I18: AE | J18: Bank Charge
A19: WF | B19: 2024-09-17 | C19: WIRE TRANS SVC CHARGE - SEQUENCE: 240917023263 SRF# 2024091700543897 TRN#240917023263 RFB# | D19: Bank Charges | E19: -15 | F19: =IF(Table147[[#This Row],[Bank Acct]]=LEFT(Table147[[#Headers],[BA Balance]],2),SUMIF(Table147[[#Headers],[Bank Acct]]:Table147[[#This Row],[Bank Acct]],Table147[[#This Row],[Bank Acct]],Table147[[#Headers],[Amount]]:Table147[[#This Row],[Amount]]),"") ->  | G19: =IF(Table147[[#This Row],[Bank Acct]]=LEFT(Table147[[#Headers],[WF Balance]],2),SUMIF(Table147[[#Headers],[Bank Acct]]:Table147[[#This Row],[Bank Acct]],Table147[[#This Row],[Bank Acct]],Table147[[#Headers],[Amount]]:Table147[[#This Row],[Amount]]),"") -> -730 | I19: AE | J19: Bank Charge
A20: BA | B20: 2024-09-18 | C20: Transfer fee | D20: Bank Charges | E20: -1 | F20: =IF(Table147[[#This Row],[Bank Acct]]=LEFT(Table147[[#Headers],[BA Balance]],2),SUMIF(Table147[[#Headers],[Bank Acct]]:Table147[[#This Row],[Bank Acct]],Table147[[#This Row],[Bank Acct]],Table147[[#Headers],[Amount]]:Table147[[#This Row],[Amount]]),"") -> -280.88 | G20: =IF(Table147[[#This Row],[Bank Acct]]=LEFT(Table147[[#Headers],[WF Balance]],2),SUMIF(Table147[[#Headers],[Bank Acct]]:Table147[[#This Row],[Bank Acct]],Table147[[#This Row],[Bank Acct]],Table147[[#Headers],[Amount]]:Table147[[#This Row],[Amount]]),"") ->  | I20: AE | J20: Bank Charge
A21: WF | B21: 2024-12-26 | C21: WIRE TRANS SVC CHARGE - SEQUENCE: 241226136911 SRF# OW00005243006945 TRN#241226136911 RFB# OW00005243006945 | D21: Bank Charges | E21: -25 | G21: =IF(Table147[[#This Row],[Bank Acct]]=LEFT(Table147[[#Headers],[WF Balance]],2),SUMIF(Table147[[#Headers],[Bank Acct]]:Table147[[#This Row],[Bank Acct]],Table147[[#This Row],[Bank Acct]],Table147[[#Headers],[Amount]]:Table147[[#This Row],[Amount]]),"") -> -755 | I21: AE | J21: Bank Charge
A22: WF | B22: 2024-12-30 | C22: WIRE TRANS SVC CHARGE - SEQUENCE: 241230128811 SRF# OW00005253772191 TRN#241230128811 RFB# OW00005253772191 | D22: Bank Charges | E22: -25 | G22: =IF(Table147[[#This Row],[Bank Acct]]=LEFT(Table147[[#Headers],[WF Balance]],2),SUMIF(Table147[[#Headers],[Bank Acct]]:Table147[[#This Row],[Bank Acct]],Table147[[#This Row],[Bank Acct]],Table147[[#Headers],[Amount]]:Table147[[#This Row],[Amount]]),"") -> -780 | I22: AE | J22: Bank Charge
D23: Bank Charges | E23: =SUM(E4:E22) -> -410.88 | G23: =IF(Table147[[#This Row],[Bank Acct]]=LEFT(Table147[[#Headers],[WF Balance]],2),SUMIF(Table147[[#Headers],[Bank Acct]]:Table147[[#This Row],[Bank Acct]],Table147[[#This Row],[Bank Acct]],Table147[[#Headers],[Amount]]:Table147[[#This Row],[Amount]]),"") -> 
A24: WF | B24: 2024-04-23 | C24: ONLINE TRANSFER TO COLLIVER F REF #IB0MYHKYRB CHECKING INVOICE 2024.9006 | D24: Business Travel | E24: -1726.5 | F24: =IF(Table147[[#This Row],[Bank Acct]]=LEFT(Table147[[#Headers],[BA Balance]],2),SUMIF(Table147[[#Headers],[Bank Acct]]:Table147[[#This Row],[Bank Acct]],Table147[[#This Row],[Bank Acct]],Table147[[#Headers],[Amount]]:Table147[[#This Row],[Amount]]),"") ->  | G24: =IF(Table147[[#This Row],[Bank Acct]]=LEFT(Table147[[#Headers],[WF Balance]],2),SUMIF(Table147[[#Headers],[Bank Acct]]:Table147[[#This Row],[Bank Acct]],Table147[[#This Row],[Bank Acct]],Table147[[#Headers],[Amount]]:Table147[[#This Row],[Amount]]),"") -> -2506.5 | H24: =IFERROR(INDEX([1]Lookup!$B$2:$C$7,MATCH(RIGHT(TRIM(Table147[[#This Row],[Description]]),4),[1]Lookup!$B$2:$B$7,0),2),"") ->  | I24: AE | J24: Reimbursement
A25: WF | B25: 2024-10-15 | C25: PURCHASE AUTHORIZED ON 10/12 SUSHI OISHII ROCKVILLE MD S584287009216105 CARD 2086 | D25: Business Travel | E25: -115.32 | G25: =IF(Table147[[#This Row],[Bank Acct]]=LEFT(Table147[[#Headers],[WF Balance]],2),SUMIF(Table147[[#Headers],[Bank Acct]]:Table147[[#This Row],[Bank Acct]],Table147[[#This Row],[Bank Acct]],Table147[[#Headers],[Amount]]:Table147[[#This Row],[Amount]]),"") -> -2621.82 | I25: AE Annual Meeting | J25: Meals
A26: WF | B26: 2024-10-15 | C26: PURCHASE AUTHORIZED ON 10/13 CLYDES TOWER OAKS 301-2940200 MD S584287630453423 CARD 2086 | D26: Business Travel | E26: -143.56 | G26: =IF(Table147[[#This Row],[Bank Acct]]=LEFT(Table147[[#Headers],[WF Balance]],2),SUMIF(Table147[[#Headers],[Bank Acct]]:Table147[[#This Row],[Bank Acct]],Table147[[#This Row],[Bank Acct]],Table147[[#Headers],[Amount]]:Table147[[#This Row],[Amount]]),"") -> -2765.38 | I26: AE Annual Meeting | J26: Meals
A27: WF | B27: 2024-10-15 | C27: PURCHASE AUTHORIZED ON 10/13 GERALD R FORD PARK GRAND RAPIDS MI S384288163674517 CARD 2086 | D27: Business Travel | E27: -94 | G27: =IF(Table147[[#This Row],[Bank Acct]]=LEFT(Table147[[#Headers],[WF Balance]],2),SUMIF(Table147[[#Headers],[Bank Acct]]:Table147[[#This Row],[Bank Acct]],Table147[[#This Row],[Bank Acct]],Table147[[#Headers],[Amount]]:Table147[[#This Row],[Amount]]),"") -> -2859.38 | I27: AE Annual Meeting | J27: Parking
A28: WF | B28: 2024-10-28 | C28: ONLINE TRANSFER TO LAKE MICHIGAN CREDIT UNION CHK XXXXXX1558 L. CARLSON REF #F20Q2MQMX9 ANNUAL MEETING FLIGHT HOTEL PARKING | D28: Business Travel | E28: -1195.28 | G28: =IF(Table147[[#This Row],[Bank Acct]]=LEFT(Table147[[#Headers],[WF Balance]],2),SUMIF(Table147[[#Headers],[Bank Acct]]:Table147[[#This Row],[Bank Acct]],Table147[[#This Row],[Bank Acct]],Table147[[#Headers],[Amount]]:Table147[[#This Row],[Amount]]),"") -> -4054.66 | I28: AE Annual Meeting
A29: WF | B29: 2024-11-06 | C29: ONLINE TRANSFER TO COLLIVER F REF #IB0Q5TY4GB CHECKING EXPENSES FC WASHINGTON NOV 2024 | D29: Business Travel | E29: -2129.95 | G29: =IF(Table147[[#This Row],[Bank Acct]]=LEFT(Table147[[#Headers],[WF Balance]],2),SUMIF(Table147[[#Headers],[Bank Acct]]:Table147[[#This Row],[Bank Acct]],Table147[[#This Row],[Bank Acct]],Table147[[#Headers],[Amount]]:Table147[[#This Row],[Amount]]),"") -> -6184.61 | I29: AE Annual Meeting
A30: WF | B30: 2024-12-26 | C30: ONLINE TRANSFER FROM COLLIVER F REF #IB0QQMWFXX EVERYDAY CHECKING REIMBURSEMENT OF 2024 EXPENSE PAYMENTS | D30: Business Travel | E30: 5428.39 | G30: =IF(Table147[[#This Row],[Bank Acct]]=LEFT(Table147[[#Headers],[WF Balance]],2),SUMIF(Table147[[#Headers],[Bank Acct]]:Table147[[#This Row],[Bank Acct]],Table147[[#This Row],[Bank Acct]],Table147[[#Headers],[Amount]]:Table147[[#This Row],[Amount]]),"") -> -756.22
A31: WF | B31: 2024-12-26 | C31: WT 241226-136911 LCL (LE CREDIT LYON /BNF=AeroNextGen Solutions SAS SRF# OW00005243006945 TRN#241226136911 RFB# OW00005243006945 | D31: Business Travel | E31: -9210.92 | G31: =IF(Table147[[#This Row],[Bank Acct]]=LEFT(Table147[[#Headers],[WF Balance]],2),SUMIF(Table147[[#Headers],[Bank Acct]]:Table147[[#This Row],[Bank Acct]],Table147[[#This Row],[Bank Acct]],Table147[[#Headers],[Amount]]:Table147[[#This Row],[Amount]]),"") -> -9967.14
A32: WF | B32: 2024-12-30 | C32: WT 241230-128811 LCL (LE CREDIT LYON /BNF=AeroNextGen Solutions SAS SRF# OW00005253772191 TRN#241230128811 RFB# OW00005253772191 | D32: Business Travel | E32: -838.19 | G32: =IF(Table147[[#This Row],[Bank Acct]]=LEFT(Table147[[#Headers],[WF Balance]],2),SUMIF(Table147[[#Headers],[Bank Acct]]:Table147[[#This Row],[Bank Acct]],Table147[[#This Row],[Bank Acct]],Table147[[#Headers],[Amount]]:Table147[[#This Row],[Amount]]),"") -> -10805.33
D33: Business Travel | E33: =SUM(E24:E32) -> -10025.33 | G33: =IF(Table147[[#This Row],[Bank Acct]]=LEFT(Table147[[#Headers],[WF Balance]],2),SUMIF(Table147[[#Headers],[Bank Acct]]:Table147[[#This Row],[Bank Acct]],Table147[[#This Row],[Bank Acct]],Table147[[#Headers],[Amount]]:Table147[[#This Row],[Amount]]),"") -> 
A34: WF | B34: 2024-04-30 | C34: ONLINE TRANSFER TO COLLIVER F REF #IB0N2LRJGB CHECKING APRIL DISTRIBUTION | D34: Distribution | E34: -1000 | F34: =IF(Table147[[#This Row],[Bank Acct]]=LEFT(Table147[[#Headers],[BA Balance]],2),SUMIF(Table147[[#Headers],[Bank Acct]]:Table147[[#This Row],[Bank Acct]],Table147[[#This Row],[Bank Acct]],Table147[[#Headers],[Amount]]:Table147[[#This Row],[Amount]]),"") ->  | G34: =IF(Table147[[#This Row],[Bank Acct]]=LEFT(Table147[[#Headers],[WF Balance]],2),SUMIF(Table147[[#Headers],[Bank Acct]]:Table147[[#This Row],[Bank Acct]],Table147[[#This Row],[Bank Acct]],Table147[[#Headers],[Amount]]:Table147[[#This Row],[Amount]]),"") -> -11805.33 | H34: =IFERROR(INDEX([1]Lookup!$B$2:$C$7,MATCH(RIGHT(TRIM(Table147[[#This Row],[Description]]),4),[1]Lookup!$B$2:$B$7,0),2),"") ->  | I34: AE | J34: Distibution
A35: WF | B35: 2024-04-30 | C35: ONLINE TRANSFER TO LAKE MICHIGAN CREDIT UNION CHK XXXXXX1558 L. CARLSON REF #F20N2KPQWB APRIL 2024 DISTRIBUTION | D35: Distribution | E35: -1000 | F35: =IF(Table147[[#This Row],[Bank Acct]]=LEFT(Table147[[#Headers],[BA Balance]],2),SUMIF(Table147[[#Headers],[Bank Acct]]:Table147[[#This Row],[Bank Acct]],Table147[[#This Row],[Bank Acct]],Table147[[#Headers],[Amount]]:Table147[[#This Row],[Amount]]),"") ->  | G35: =IF(Table147[[#This Row],[Bank Acct]]=LEFT(Table147[[#Headers],[WF Balance]],2),SUMIF(Table147[[#Headers],[Bank Acct]]:Table147[[#This Row],[Bank Acct]],Table147[[#This Row],[Bank Acct]],Table147[[#Headers],[Amount]]:Table147[[#This Row],[Amount]]),"") -> -12805.33 | I35: AE | J35: Distibution
A36: WF | B36: 2024-12-20 | C36: ONLINE TRANSFER TO COLLIVER F REF #IB0QNR8HHG EVERYDAY CHECKING EOY DISTRIBUTION | D36: Distribution | E36: -4100 | G36: =IF(Table147[[#This Row],[Bank Acct]]=LEFT(Table147[[#Headers],[WF Balance]],2),SUMIF(Table147[[#Headers],[Bank Acct]]:Table147[[#This Row],[Bank Acct]],Table147[[#This Row],[Bank Acct]],Table147[[#Headers],[Amount]]:Table147[[#This Row],[Amount]]),"") -> -16905.33 | I36: AE | J36: Distibution
A37: WF | B37: 2024-12-26 | C37: ONLINE TRANSFER TO LAKE MICHIGAN CREDIT UNION CHK XXXXXX1558 L. CARLSON REF #F20QQKZH3V ADS B GLOABL DISTRIBUTION | D37: Distribution | E37: -4100 | G37: =IF(Table147[[#This Row],[Bank Acct]]=LEFT(Table147[[#Headers],[WF Balance]],2),SUMIF(Table147[[#Headers],[Bank Acct]]:Table147[[#This Row],[Bank Acct]],Table147[[#This Row],[Bank Acct]],Table147[[#Headers],[Amount]]:Table147[[#This Row],[Amount]]),"") -> -21005.33 | I37: AE | J37: Distibution
D38: Distribution | E38: =SUM(E34:E37) -> -10200 | G38: =IF(Table147[[#This Row],[Bank Acct]]=LEFT(Table147[[#Headers],[WF Balance]],2),SUMIF(Table147[[#Headers],[Bank Acct]]:Table147[[#This Row],[Bank Acct]],Table147[[#This Row],[Bank Acct]],Table147[[#Headers],[Amount]]:Table147[[#This Row],[Amount]]),"") -> 
A39: WF | B39: 2024-03-07 | C39: ONLINE TRANSFER TO COLLIVER F REF #IB0MH629Y2 CHECKING ANG INVOICE 2024.9001 | D39: Dues/Subscriptions | E39: -1050.47 | F39: =IF(Table147[[#This Row],[Bank Acct]]=LEFT(Table147[[#Headers],[BA Balance]],2),SUMIF(Table147[[#Headers],[Bank Acct]]:Table147[[#This Row],[Bank Acct]],Table147[[#This Row],[Bank Acct]],Table147[[#Headers],[Amount]]:Table147[[#This Row],[Amount]]),"") ->  | G39: =IF(Table147[[#This Row],[Bank Acct]]=LEFT(Table147[[#Headers],[WF Balance]],2),SUMIF(Table147[[#Headers],[Bank Acct]]:Table147[[#This Row],[Bank Acct]],Table147[[#This Row],[Bank Acct]],Table147[[#Headers],[Amount]]:Table147[[#This Row],[Amount]]),"") -> -22055.8 | H39: =IFERROR(INDEX([1]Lookup!$B$2:$C$7,MATCH(RIGHT(TRIM(Table147[[#This Row],[Description]]),4),[1]Lookup!$B$2:$B$7,0),2),"") ->  | J39: Reimbursement | K39: 240307 - ANG Invoice 2024-9001 (with receipts).pdf
A40: WF | B40: 2024-03-07 | C40: ONLINE TRANSFER TO COLLIVER F REF #IB0MH67R6Y CHECKING ANG INVOICE 2024.9003 | D40: Dues/Subscriptions | E40: -1050.47 | F40: =IF(Table147[[#This Row],[Bank Acct]]=LEFT(Table147[[#Headers],[BA Balance]],2),SUMIF(Table147[[#Headers],[Bank Acct]]:Table147[[#This Row],[Bank Acct]],Table147[[#This Row],[Bank Acct]],Table147[[#Headers],[Amount]]:Table147[[#This Row],[Amount]]),"") ->  | G40: =IF(Table147[[#This Row],[Bank Acct]]=LEFT(Table147[[#Headers],[WF Balance]],2),SUMIF(Table147[[#Headers],[Bank Acct]]:Table147[[#This Row],[Bank Acct]],Table147[[#This Row],[Bank Acct]],Table147[[#Headers],[Amount]]:Table147[[#This Row],[Amount]]),"") -> -23106.27 | H40: =IFERROR(INDEX([1]Lookup!$B$2:$C$7,MATCH(RIGHT(TRIM(Table147[[#This Row],[Description]]),4),[1]Lookup!$B$2:$B$7,0),2),"") ->  | J40: Reimbursement | K40: 240307 - ANG Invoice 2024-9003 (with receipts).pdf
A41: WF | B41: 2024-07-22 | C41: CHECK # 3002 (Aviation Week Information Network) | D41: Dues/Subscriptions | E41: -5000 | F41: =IF(Table147[[#This Row],[Bank Acct]]=LEFT(Table147[[#Headers],[BA Balance]],2),SUMIF(Table147[[#Headers],[Bank Acct]]:Table147[[#This Row],[Bank Acct]],Table147[[#This Row],[Bank Acct]],Table147[[#Headers],[Amount]]:Table147[[#This Row],[Amount]]),"") ->  | G41: =IF(Table147[[#This Row],[Bank Acct]]=LEFT(Table147[[#Headers],[WF Balance]],2),SUMIF(Table147[[#Headers],[Bank Acct]]:Table147[[#This Row],[Bank Acct]],Table147[[#This Row],[Bank Acct]],Table147[[#Headers],[Amount]]:Table147[[#This Row],[Amount]]),"") -> -28106.27 | I41: AE | J41: AWIN
A42: WF | B42: 2024-09-26 | C42: CHECK # 3003 (Aviation Week Information Network) | D42: Dues/Subscriptions | E42: -4995 | G42: =IF(Table147[[#This Row],[Bank Acct]]=LEFT(Table147[[#Headers],[WF Balance]],2),SUMIF(Table147[[#Headers],[Bank Acct]]:Table147[[#This Row],[Bank Acct]],Table147[[#This Row],[Bank Acct]],Table147[[#Headers],[Amount]]:Table147[[#This Row],[Amount]]),"") -> -33101.27 | I42: AE | J42: AWIN
A43: WF | B43: 2024-11-18 | C43: PURCHASE AUTHORIZED ON 11/15 NBAA WASHINGTON DC S304320607062480 CARD 2086 | D43: Dues/Subscriptions | E43: -199 | G43: =IF(Table147[[#This Row],[Bank Acct]]=LEFT(Table147[[#Headers],[WF Balance]],2),SUMIF(Table147[[#Headers],[Bank Acct]]:Table147[[#This Row],[Bank Acct]],Table147[[#This Row],[Bank Acct]],Table147[[#Headers],[Amount]]:Table147[[#This Row],[Amount]]),"") -> -33300.27 | I43: AE | J43: Membership
D44: Dues/Subscriptions | E44: =SUM(E39:E43) -> -12294.94 | G44: =IF(Table147[[#This Row],[Bank Acct]]=LEFT(Table147[[#Headers],[WF Balance]],2),SUMIF(Table147[[#Headers],[Bank Acct]]:Table147[[#This Row],[Bank Acct]],Table147[[#This Row],[Bank Acct]],Table147[[#Headers],[Amount]]:Table147[[#This Row],[Amount]]),"") -> 
A45: BA | B45: 2024-01-10 | C45: PEREGRINE AVIONI DES:QUICKBOOKS ID:375020979 INDN:AVIAGLOBAL GROUP, LLC CO ID:1722616653 PPD | D45: Income | E45: 2069 | F45: =IF(Table147[[#This Row],[Bank Acct]]=LEFT(Table147[[#Headers],[BA Balance]],2),SUMIF(Table147[[#Headers],[Bank Acct]]:Table147[[#This Row],[Bank Acct]],Table147[[#This Row],[Bank Acct]],Table147[[#Headers],[Amount]]:Table147[[#This Row],[Amount]]),"") -> 1788.12 | G45: =IF(Table147[[#This Row],[Bank Acct]]=LEFT(Table147[[#Headers],[WF Balance]],2),SUMIF(Table147[[#Headers],[Bank Acct]]:Table147[[#This Row],[Bank Acct]],Table147[[#This Row],[Bank Acct]],Table147[[#Headers],[Amount]]:Table147[[#This Row],[Amount]]),"") ->  | H45: =IFERROR(INDEX([1]Lookup!$B$2:$C$7,MATCH(RIGHT(TRIM(Table147[[#This Row],[Description]]),4),[1]Lookup!$B$2:$B$7,0),2),"") ->  | I45: Peregrine | J45: Pmt | K45: =INDEX('[1]2023 Invoice Payments'!B:D,MATCH(#REF!,'[1]2023 Invoice Payments'!B:B,0),3) -> 
A46: BA | B46: 2024-01-26 | C46: TRANSFER AVIAGLOBAL GROUP, LL:Aerospace Edge, LLC Confirmation# 0529198670 | D46: Income | E46: -2005 | F46: =IF(Table147[[#This Row],[Bank Acct]]=LEFT(Table147[[#Headers],[BA Balance]],2),SUMIF(Table147[[#Headers],[Bank Acct]]:Table147[[#This Row],[Bank Acct]],Table147[[#This Row],[Bank Acct]],Table147[[#Headers],[Amount]]:Table147[[#This Row],[Amount]]),"") -> -216.88 | G46: =IF(Table147[[#This Row],[Bank Acct]]=LEFT(Table147[[#Headers],[WF Balance]],2),SUMIF(Table147[[#Headers],[Bank Acct]]:Table147[[#This Row],[Bank Acct]],Table147[[#This Row],[Bank Acct]],Table147[[#Headers],[Amount]]:Table147[[#This Row],[Amount]]),"") ->  | H46: =IFERROR(INDEX([1]Lookup!$B$2:$C$7,MATCH(RIGHT(TRIM(Table147[[#This Row],[Description]]),4),[1]Lookup!$B$2:$B$7,0),2),"") ->  | I46: AE | J46: Transfer
A47: WF | B47: 2024-01-29 | C47: AVIAGLOBAL GROUP SENDER 240129 XXXXX5952 0000AEROSPACE EDGE, | D47: Income | E47: 2005 | G47: =IF(Table147[[#This Row],[Bank Acct]]=LEFT(Table147[[#Headers],[WF Balance]],2),SUMIF(Table147[[#Headers],[Bank Acct]]:Table147[[#This Row],[Bank Acct]],Table147[[#This Row],[Bank Acct]],Table147[[#Headers],[Amount]]:Table147[[#This Row],[Amount]]),"") -> -31295.27 | H47: =IFERROR(INDEX([1]Lookup!$B$2:$C$7,MATCH(RIGHT(TRIM(Table147[[#This Row],[Description]]),4),[1]Lookup!$B$2:$B$7,0),2),"") ->  | I47: AE | J47: Transfer
A48: WF | B48: 2024-03-07 | C48: PEREGRINE AVIONI QUICKBOOKS 240307 XXXXX3858 AEROSPACE EDGE, LLC | D48: Income | E48: 2147.75 | F48: =IF(Table147[[#This Row],[Bank Acct]]=LEFT(Table147[[#Headers],[BA Balance]],2),SUMIF(Table147[[#Headers],[Bank Acct]]:Table147[[#This Row],[Bank Acct]],Table147[[#This Row],[Bank Acct]],Table147[[#Headers],[Amount]]:Table147[[#This Row],[Amount]]),"") ->  | G48: =IF(Table147[[#This Row],[Bank Acct]]=LEFT(Table147[[#Headers],[WF Balance]],2),SUMIF(Table147[[#Headers],[Bank Acct]]:Table147[[#This Row],[Bank Acct]],Table147[[#This Row],[Bank Acct]],Table147[[#Headers],[Amount]]:Table147[[#This Row],[Amount]]),"") -> -29147.52 | H48: =IFERROR(INDEX([1]Lookup!$B$2:$C$7,MATCH(RIGHT(TRIM(Table147[[#This Row],[Description]]),4),[1]Lookup!$B$2:$B$7,0),2),"") ->  | I48: Peregrine | J48: Pmt
A49: WF | B49: 2024-04-03 | C49: PEREGRINE AVIONI QUICKBOOKS 240403 XXXXX3858 AEROSPACE EDGE, LLC | D49: Income | E49: 2075 | F49: =IF(Table147[[#This Row],[Bank Acct]]=LEFT(Table147[[#Headers],[BA Balance]],2),SUMIF(Table147[[#Headers],[Bank Acct]]:Table147[[#This Row],[Bank Acct]],Table147[[#This Row],[Bank Acct]],Table147[[#Headers],[Amount]]:Table147[[#This Row],[Amount]]),"") ->  | G49: =IF(Table147[[#This Row],[Bank Acct]]=LEFT(Table147[[#Headers],[WF Balance]],2),SUMIF(Table147[[#Headers],[Bank Acct]]:Table147[[#This Row],[Bank Acct]],Table147[[#This Row],[Bank Acct]],Table147[[#Headers],[Amount]]:Table147[[#This Row],[Amount]]),"") -> -27072.52 | H49: =IFERROR(INDEX([1]Lookup!$B$2:$C$7,MATCH(RIGHT(TRIM(Table147[[#This Row],[Description]]),4),[1]Lookup!$B$2:$B$7,0),2),"") ->  | I49: Peregrine | J49: Pmt
A50: WF | B50: 2024-04-18 | C50: PEREGRINE AVIONI QUICKBOOKS 240418 XXXXX3858 AEROSPACE EDGE, LLC | D50: Income | E50: 2000 | F50: =IF(Table147[[#This Row],[Bank Acct]]=LEFT(Table147[[#Headers],[BA Balance]],2),SUMIF(Table147[[#Headers],[Bank Acct]]:Table147[[#This Row],[Bank Acct]],Table147[[#This Row],[Bank Acct]],Table147[[#Headers],[Amount]]:Table147[[#This Row],[Amount]]),"") ->  | G50: =IF(Table147[[#This Row],[Bank Acct]]=LEFT(Table147[[#Headers],[WF Balance]],2),SUMIF(Table147[[#Headers],[Bank Acct]]:Table147[[#This Row],[Bank Acct]],Table147[[#This Row],[Bank Acct]],Table147[[#Headers],[Amount]]:Table147[[#This Row],[Amount]]),"") -> -25072.52 | I50: Peregrine | J50: Pmt
A51: WF | B51: 2024-04-18 | C51: PEREGRINE AVIONI QUICKBOOKS 240418 XXXXX3858 AEROSPACE EDGE, LLC | D51: Income | E51: 2075 | F51: =IF(Table147[[#This Row],[Bank Acct]]=LEFT(Table147[[#Headers],[BA Balance]],2),SUMIF(Table147[[#Headers],[Bank Acct]]:Table147[[#This Row],[Bank Acct]],Table147[[#This Row],[Bank Acct]],Table147[[#Headers],[Amount]]:Table147[[#This Row],[Amount]]),"") ->  | G51: =IF(Table147[[#This Row],[Bank Acct]]=LEFT(Table147[[#Headers],[WF Balance]],2),SUMIF(Table147[[#Headers],[Bank Acct]]:Table147[[#This Row],[Bank Acct]],Table147[[#This Row],[Bank Acct]],Table147[[#Headers],[Amount]]:Table147[[#This Row],[Amount]]),"") -> -22997.52 | H51: =IFERROR(INDEX([1]Lookup!$B$2:$C$7,MATCH(RIGHT(TRIM(Table147[[#This Row],[Description]]),4),[1]Lookup!$B$2:$B$7,0),2),"") ->  | I51: Peregrine | J51: Pmt
A52: WF | B52: 2024-06-03 | C52: PEREGRINE AVIONI QUICKBOOKS 240603 XXXXX3858 AEROSPACE EDGE, LLC | D52: Income | E52: 2098.2 | F52: =IF(Table147[[#This Row],[Bank Acct]]=LEFT(Table147[[#Headers],[BA Balance]],2),SUMIF(Table147[[#Headers],[Bank Acct]]:Table147[[#This Row],[Bank Acct]],Table147[[#This Row],[Bank Acct]],Table147[[#Headers],[Amount]]:Table147[[#This Row],[Amount]]),"") ->  | G52: =IF(Table147[[#This Row],[Bank Acct]]=LEFT(Table147[[#Headers],[WF Balance]],2),SUMIF(Table147[[#Headers],[Bank Acct]]:Table147[[#This Row],[Bank Acct]],Table147[[#This Row],[Bank Acct]],Table147[[#Headers],[Amount]]:Table147[[#This Row],[Amount]]),"") -> -20899.32 | I52: Peregrine | J52: Pmt
A53: WF | B53: 2024-07-01 | C53: WT 2024070100567414 LLOYDS BANK PLC /ORG=COUNTERPOINT MARKET INTELLIGENCE L SRF# 2024070100567414 TRN#240701045757 RFB# | D53: Income | E53: 615.65 | F53: =IF(Table147[[#This Row],[Bank Acct]]=LEFT(Table147[[#Headers],[BA Balance]],2),SUMIF(Table147[[#Headers],[Bank Acct]]:Table147[[#This Row],[Bank Acct]],Table147[[#This Row],[Bank Acct]],Table147[[#Headers],[Amount]]:Table147[[#This Row],[Amount]]),"") ->  | G53: =IF(Table147[[#This Row],[Bank Acct]]=LEFT(Table147[[#Headers],[WF Balance]],2),SUMIF(Table147[[#Headers],[Bank Acct]]:Table147[[#This Row],[Bank Acct]],Table147[[#This Row],[Bank Acct]],Table147[[#Headers],[Amount]]:Table147[[#This Row],[Amount]]),"") -> -20283.67 | I53: Counterpoint | J53: Pmt
A54: WF | B54: 2024-07-02 | C54: WT 2024070200547536 LLOYDS BANK PLC /ORG=COUNTERPOINT MARKET INTELLIGENCE L SRF# 2024070200547536 TRN#240702008557 RFB# | D54: Income | E54: 2463.4 | F54: =IF(Table147[[#This Row],[Bank Acct]]=LEFT(Table147[[#Headers],[BA Balance]],2),SUMIF(Table147[[#Headers],[Bank Acct]]:Table147[[#This Row],[Bank Acct]],Table147[[#This Row],[Bank Acct]],Table147[[#Headers],[Amount]]:Table147[[#This Row],[Amount]]),"") ->  | G54: =IF(Table147[[#This Row],[Bank Acct]]=LEFT(Table147[[#Headers],[WF Balance]],2),SUMIF(Table147[[#Headers],[Bank Acct]]:Table147[[#This Row],[Bank Acct]],Table147[[#This Row],[Bank Acct]],Table147[[#Headers],[Amount]]:Table147[[#This Row],[Amount]]),"") -> -17820.27 | I54: Counterpoint | J54: Pmt
A55: WF | B55: 2024-07-12 | C55: MOBILE DEPOSIT : REF NUMBER :912120073258 | D55: Income | E55: 2075 | F55: =IF(Table147[[#This Row],[Bank Acct]]=LEFT(Table147[[#Headers],[BA Balance]],2),SUMIF(Table147[[#Headers],[Bank Acct]]:Table147[[#This Row],[Bank Acct]],Table147[[#This Row],[Bank Acct]],Table147[[#Headers],[Amount]]:Table147[[#This Row],[Amount]]),"") ->  | G55: =IF(Table147[[#This Row],[Bank Acct]]=LEFT(Table147[[#Headers],[WF Balance]],2),SUMIF(Table147[[#Headers],[Bank Acct]]:Table147[[#This Row],[Bank Acct]],Table147[[#This Row],[Bank Acct]],Table147[[#Headers],[Amount]]:Table147[[#This Row],[Amount]]),"") -> -15745.27 | I55: Peregrine | J55: Pmt
A56: WF | B56: 2024-07-12 | C56: MOBILE DEPOSIT : REF NUMBER :912120073258 | D56: Income | E56: 2075 | F56: =IF(Table147[[#This Row],[Bank Acct]]=LEFT(Table147[[#Headers],[BA Balance]],2),SUMIF(Table147[[#Headers],[Bank Acct]]:Table147[[#This Row],[Bank Acct]],Table147[[#This Row],[Bank Acct]],Table147[[#Headers],[Amount]]:Table147[[#This Row],[Amount]]),"") ->  | G56: =IF(Table147[[#This Row],[Bank Acct]]=LEFT(Table147[[#Headers],[WF Balance]],2),SUMIF(Table147[[#Headers],[Bank Acct]]:Table147[[#This Row],[Bank Acct]],Table147[[#This Row],[Bank Acct]],Table147[[#Headers],[Amount]]:Table147[[#This Row],[Amount]]),"") -> -13670.27 | I56: Peregrine | J56: Pmt
A57: WF | B57: 2024-09-12 | C57: WT FED#02419 TRUIST BANK /ORG=METREA HOLDINGS 1 LLC SRF# 2024091200011330 TRN#240912079660 RFB# 82040439 | D57: Income | E57: 2075 | F57: =IF(Table147[[#This Row],[Bank Acct]]=LEFT(Table147[[#Headers],[BA Balance]],2),SUMIF(Table147[[#Headers],[Bank Acct]]:Table147[[#This Row],[Bank Acct]],Table147[[#This Row],[Bank Acct]],Table147[[#Headers],[Amount]]:Table147[[#This Row],[Amount]]),"") ->  | G57: =IF(Table147[[#This Row],[Bank Acct]]=LEFT(Table147[[#Headers],[WF Balance]],2),SUMIF(Table147[[#Headers],[Bank Acct]]:Table147[[#This Row],[Bank Acct]],Table147[[#This Row],[Bank Acct]],Table147[[#Headers],[Amount]]:Table147[[#This Row],[Amount]]),"") -> -11595.27 | I57: Peregrine | J57: Pmt
A58: WF | B58: 2024-09-13 | C58: WT FED#02639 TRUIST BANK /ORG=METREA HOLDINGS 1 LLC SRF# 2024091300012572 TRN#240913071936 RFB# 82043318 | D58: Income | E58: 2075 | F58: =IF(Table147[[#This Row],[Bank Acct]]=LEFT(Table147[[#Headers],[BA Balance]],2),SUMIF(Table147[[#Headers],[Bank Acct]]:Table147[[#This Row],[Bank Acct]],Table147[[#This Row],[Bank Acct]],Table147[[#Headers],[Amount]]:Table147[[#This Row],[Amount]]),"") ->  | G58: =IF(Table147[[#This Row],[Bank Acct]]=LEFT(Table147[[#Headers],[WF Balance]],2),SUMIF(Table147[[#Headers],[Bank Acct]]:Table147[[#This Row],[Bank Acct]],Table147[[#This Row],[Bank Acct]],Table147[[#Headers],[Amount]]:Table147[[#This Row],[Amount]]),"") -> -9520.27 | I58: Peregrine | J58: Pmt
A59: WF | B59: 2024-09-17 | C59: WT 2024091700543897 LLOYDS BANK PLC /ORG=COUNTERPOINT MARKET INTELLIGENCE L SRF# 2024091700543897 TRN#240917023263 RFB# | D59: Income | E59: 3197 | F59: =IF(Table147[[#This Row],[Bank Acct]]=LEFT(Table147[[#Headers],[BA Balance]],2),SUMIF(Table147[[#Headers],[Bank Acct]]:Table147[[#This Row],[Bank Acct]],Table147[[#This Row],[Bank Acct]],Table147[[#Headers],[Amount]]:Table147[[#This Row],[Amount]]),"") ->  | G59: =IF(Table147[[#This Row],[Bank Acct]]=LEFT(Table147[[#Headers],[WF Balance]],2),SUMIF(Table147[[#Headers],[Bank Acct]]:Table147[[#This Row],[Bank Acct]],Table147[[#This Row],[Bank Acct]],Table147[[#Headers],[Amount]]:Table147[[#This Row],[Amount]]),"") -> -6323.27 | I59: Counterpoint | J59: Pmt
A60: BA | B60: 2024-09-18 | C60: close account | D60: Income | E60: -60.82 | F60: =IF(Table147[[#This Row],[Bank Acct]]=LEFT(Table147[[#Headers],[BA Balance]],2),SUMIF(Table147[[#Headers],[Bank Acct]]:Table147[[#This Row],[Bank Acct]],Table147[[#This Row],[Bank Acct]],Table147[[#Headers],[Amount]]:Table147[[#This Row],[Amount]]),"") -> -277.7 | G60: =IF(Table147[[#This Row],[Bank Acct]]=LEFT(Table147[[#Headers],[WF Balance]],2),SUMIF(Table147[[#Headers],[Bank Acct]]:Table147[[#This Row],[Bank Acct]],Table147[[#This Row],[Bank Acct]],Table147[[#Headers],[Amount]]:Table147[[#This Row],[Amount]]),"") ->  | I60: AE | J60: Transfer
A61: WF | B61: 2024-09-23 | C61: AVIAGLOBAL GROUP SENDER 240923 XXXXX8452 0000AEROSPACE EDGE, | D61: Income | E61: 60.82 | G61: =IF(Table147[[#This Row],[Bank Acct]]=LEFT(Table147[[#Headers],[WF Balance]],2),SUMIF(Table147[[#Headers],[Bank Acct]]:Table147[[#This Row],[Bank Acct]],Table147[[#This Row],[Bank Acct]],Table147[[#Headers],[Amount]]:Table147[[#This Row],[Amount]]),"") -> -6262.45 | I61: AE | J61: Transfer | K61: No receipt
A62: WF | B62: 2024-10-24 | C62: WT 2024102400551226 LLOYDS BANK PLC /ORG=COUNTERPOINT MARKET INTELLIGENCE L SRF# 2024102400551226 TRN#241024019692 RFB# | D62: Income | E62: 3660.99 | G62: =IF(Table147[[#This Row],[Bank Acct]]=LEFT(Table147[[#Headers],[WF Balance]],2),SUMIF(Table147[[#Headers],[Bank Acct]]:Table147[[#This Row],[Bank Acct]],Table147[[#This Row],[Bank Acct]],Table147[[#Headers],[Amount]]:Table147[[#This Row],[Amount]]),"") -> -2601.46 | I62: Counterpoint | J62: Pmt
A63: WF | B63: 2024-11-26 | C63: WT 2024112600603289 LLOYDS BANK PLC /ORG=COUNTERPOINT MARKET INTELLIGENCE L SRF# 2024112600603289 TRN#241126070058 RFB# | D63: Income | E63: 1551.19 | G63: =IF(Table147[[#This Row],[Bank Acct]]=LEFT(Table147[[#Headers],[WF Balance]],2),SUMIF(Table147[[#Headers],[Bank Acct]]:Table147[[#This Row],[Bank Acct]],Table147[[#This Row],[Bank Acct]],Table147[[#Headers],[Amount]]:Table147[[#This Row],[Amount]]),"") -> -1050.27 | I63: Counterpoint | J63: Pmt
A64: WF | B64: 2024-11-27 | C64: METREA PEREGRINE PAYABLES 112624 MASD-000019 Aerospace Edge, LLC | D64: Income | E64: 4075 | G64: =IF(Table147[[#This Row],[Bank Acct]]=LEFT(Table147[[#Headers],[WF Balance]],2),SUMIF(Table147[[#Headers],[Bank Acct]]:Table147[[#This Row],[Bank Acct]],Table147[[#This Row],[Bank Acct]],Table147[[#Headers],[Amount]]:Table147[[#This Row],[Amount]]),"") -> 3024.73 | I64: Peregrine | J64: Pmt
A65: WF | B65: 2024-12-12 | C65: METREA PEREGRINE PAYABLES 121124 MASD-000019 Aerospace Edge, LLC | D65: Income | E65: 2000 | G65: =IF(Table147[[#This Row],[Bank Acct]]=LEFT(Table147[[#Headers],[WF Balance]],2),SUMIF(Table147[[#Headers],[Bank Acct]]:Table147[[#This Row],[Bank Acct]],Table147[[#This Row],[Bank Acct]],Table147[[#Headers],[Amount]]:Table147[[#This Row],[Amount]]),"") -> 5024.73 | I65: Peregrine | J65: Pmt
D66: Income | E66: =SUM(E45:E65) -> 38328.18 | G66: =IF(Table147[[#This Row],[Bank Acct]]=LEFT(Table147[[#Headers],[WF Balance]],2),SUMIF(Table147[[#Headers],[Bank Acct]]:Table147[[#This Row],[Bank Acct]],Table147[[#This Row],[Bank Acct]],Table147[[#Headers],[Amount]]:Table147[[#This Row],[Amount]]),"") -> 
A67: BA | B67: 2024-01-02 | C67: OWL FOR THUNDERBI 01/02 PURCHASE WIESBADEN 00 DEBIT CARD *7429 | D67: IT Services/Supplies | E67: -11.09 | F67: =IF(Table147[[#This Row],[Bank Acct]]=LEFT(Table147[[#Headers],[BA Balance]],2),SUMIF(Table147[[#Headers],[Bank Acct]]:Table147[[#This Row],[Bank Acct]],Table147[[#This Row],[Bank Acct]],Table147[[#Headers],[Amount]]:Table147[[#This Row],[Amount]]),"") -> -288.79 | G67: =IF(Table147[[#This Row],[Bank Acct]]=LEFT(Table147[[#Headers],[WF Balance]],2),SUMIF(Table147[[#Headers],[Bank Acct]]:Table147[[#This Row],[Bank Acct]],Table147[[#This Row],[Bank Acct]],Table147[[#Headers],[Amount]]:Table147[[#This Row],[Amount]]),"") ->  | H67: =IFERROR(INDEX([1]Lookup!$B$2:$C$7,MATCH(RIGHT(TRIM(Table147[[#This Row],[Description]]),4),[1]Lookup!$B$2:$B$7,0),2),"") -> FWC | I67: AE | J67: Web Tools | K67: 240102 - Owl invoice 3-119979.pdf
A68: WF | B68: 2024-01-19 | C68: RECURRING PAYMENT AUTHORIZED ON 01/18 Mailchimp 678-9990141 GA S464018381005079 CARD 2086 | D68: IT Services/Supplies | E68: -13.73 | G68: =IF(Table147[[#This Row],[Bank Acct]]=LEFT(Table147[[#Headers],[WF Balance]],2),SUMIF(Table147[[#Headers],[Bank Acct]]:Table147[[#This Row],[Bank Acct]],Table147[[#This Row],[Bank Acct]],Table147[[#Headers],[Amount]]:Table147[[#This Row],[Amount]]),"") -> 5011 | H68: =IFERROR(INDEX([1]Lookup!$B$2:$C$7,MATCH(RIGHT(TRIM(Table147[[#This Row],[Description]]),4),[1]Lookup!$B$2:$B$7,0),2),"") -> LRC | I68: AE | J68: Mailchimp | K68: 240118 - AE - Mailchimp Essentials MC20075514.pdf
A69: WF | B69: 2024-01-22 | C69: RECURRING PAYMENT AUTHORIZED ON 01/20 Mailchimp 678-9990141 GA S584020346669793 CARD 2086 | D69: IT Services/Supplies | E69: -75 | G69: =IF(Table147[[#This Row],[Bank Acct]]=LEFT(Table147[[#Headers],[WF Balance]],2),SUMIF(Table147[[#Headers],[Bank Acct]]:Table147[[#This Row],[Bank Acct]],Table147[[#This Row],[Bank Acct]],Table147[[#Headers],[Amount]]:Table147[[#This Row],[Amount]]),"") -> 4936 | H69: =IFERROR(INDEX([1]Lookup!$B$2:$C$7,MATCH(RIGHT(TRIM(Table147[[#This Row],[Description]]),4),[1]Lookup!$B$2:$B$7,0),2),"") -> LRC | I69: Peregrine | J69: Mailchimp | K69: 240120 - Peregrine - Mailchimp Essentials MC20088462.pdf
A70: BA | B70: 2024-02-09 | C70: INMOTIONHOSTING.C 02/08 PURCHASE 8883214678 CA DEBIT CARD *7429 | D70: IT Services/Supplies | E70: -39.98 | F70: =IF(Table147[[#This Row],[Bank Acct]]=LEFT(Table147[[#Headers],[BA Balance]],2),SUMIF(Table147[[#Headers],[Bank Acct]]:Table147[[#This Row],[Bank Acct]],Table147[[#This Row],[Bank Acct]],Table147[[#Headers],[Amount]]:Table147[[#This Row],[Amount]]),"") -> -328.77 | G70: =IF(Table147[[#This Row],[Bank Acct]]=LEFT(Table147[[#Headers],[WF Balance]],2),SUMIF(Table147[[#Headers],[Bank Acct]]:Table147[[#This Row],[Bank Acct]],Table147[[#This Row],[Bank Acct]],Table147[[#Headers],[Amount]]:Table147[[#This Row],[Amount]]),"") ->  | H70: =IFERROR(INDEX([1]Lookup!$B$2:$C$7,MATCH(RIGHT(TRIM(Table147[[#This Row],[Description]]),4),[1]Lookup!$B$2:$B$7,0),2),"") -> FWC | I70: AE | J70: Web Tools | K70: 240209 - InMotion Hosting - Receipt - IMH-314-144898-131.pdf
A71: WF | B71: 2024-02-13 | C71: RECURRING PAYMENT AUTHORIZED ON 02/12 STK*Shutterstock 866-6633954 NY S464043705491573 CARD 2086 | D71: IT Services/Supplies | E71: -23.2 | G71: =IF(Table147[[#This Row],[Bank Acct]]=LEFT(Table147[[#Headers],[WF Balance]],2),SUMIF(Table147[[#Headers],[Bank Acct]]:Table147[[#This Row],[Bank Acct]],Table147[[#This Row],[Bank Acct]],Table147[[#Headers],[Amount]]:Table147[[#This Row],[Amount]]),"") -> 4912.8 | H71: =IFERROR(INDEX([1]Lookup!$B$2:$C$7,MATCH(RIGHT(TRIM(Table147[[#This Row],[Description]]),4),[1]Lookup!$B$2:$B$7,0),2),"") -> LRC | I71: Peregrine | J71: Images | K71: 240212 - Shutterstock CS-09F54-1CD2.pdf
A72: WF | B72: 2024-02-20 | C72: RECURRING PAYMENT AUTHORIZED ON 02/18 Mailchimp 678-9990141 GA S584049370936633 CARD 2086 | D72: IT Services/Supplies | E72: -13.73 | G72: =IF(Table147[[#This Row],[Bank Acct]]=LEFT(Table147[[#Headers],[WF Balance]],2),SUMIF(Table147[[#Headers],[Bank Acct]]:Table147[[#This Row],[Bank Acct]],Table147[[#This Row],[Bank Acct]],Table147[[#Headers],[Amount]]:Table147[[#This Row],[Amount]]),"") -> 4899.07 | H72: =IFERROR(INDEX([1]Lookup!$B$2:$C$7,MATCH(RIGHT(TRIM(Table147[[#This Row],[Description]]),4),[1]Lookup!$B$2:$B$7,0),2),"") -> LRC | I72: AE | J72: Mailchimp | K72: 240218 - AE - Mailchimp Essentials MC20279598.pdf
A73: WF | B73: 2024-02-21 | C73: RECURRING PAYMENT AUTHORIZED ON 02/20 Mailchimp 678-9990141 GA S464051414345651 CARD 2086 | D73: IT Services/Supplies | E73: -75 | G73: =IF(Table147[[#This Row],[Bank Acct]]=LEFT(Table147[[#Headers],[WF Balance]],2),SUMIF(Table147[[#Headers],[Bank Acct]]:Table147[[#This Row],[Bank Acct]],Table147[[#This Row],[Bank Acct]],Table147[[#Headers],[Amount]]:Table147[[#This Row],[Amount]]),"") -> 4824.07 | H73: =IFERROR(INDEX([1]Lookup!$B$2:$C$7,MATCH(RIGHT(TRIM(Table147[[#This Row],[Description]]),4),[1]Lookup!$B$2:$B$7,0),2),"") -> LRC | I73: Peregrine | J73: Mailchimp | K73: 240220 - Peregrine - Mailchimp Essentials MC20297922.pdf
A74: WF | B74: 2024-03-06 | C74: RECURRING PAYMENT AUTHORIZED ON 03/05 AIOSEO.COM - DE HTTPSAIOSEO.C FL S304065545513425 CARD 5623 | D74: IT Services/Supplies | E74: -4.92 | F74: =IF(Table147[[#This Row],[Bank Acct]]=LEFT(Table147[[#Headers],[BA Balance]],2),SUMIF(Table147[[#Headers],[Bank Acct]]:Table147[[#This Row],[Bank Acct]],Table147[[#This Row],[Bank Acct]],Table147[[#Headers],[Amount]]:Table147[[#This Row],[Amount]]),"") ->  | G74: =IF(Table147[[#This Row],[Bank Acct]]=LEFT(Table147[[#Headers],[WF Balance]],2),SUMIF(Table147[[#Headers],[Bank Acct]]:Table147[[#This Row],[Bank Acct]],Table147[[#This Row],[Bank Acct]],Table147[[#Headers],[Amount]]:Table147[[#This Row],[Amount]]),"") -> 4819.15 | H74: =IFERROR(INDEX([1]Lookup!$B$2:$C$7,MATCH(RIGHT(TRIM(Table147[[#This Row],[Description]]),4),[1]Lookup!$B$2:$B$7,0),2),"") -> FWC | I74: Web Hosting | J74: Web Tools
A75: WF | B75: 2024-03-07 | C75: ONLINE TRANSFER TO COLLIVER F REF #IB0MH62PHW CHECKING ANG INVOICE 2024.9002 | D75: IT Services/Supplies | E75: -832.86 | F75: =IF(Table147[[#This Row],[Bank Acct]]=LEFT(Table147[[#Headers],[BA Balance]],2),SUMIF(Table147[[#Headers],[Bank Acct]]:Table147[[#This Row],[Bank Acct]],Table147[[#This Row],[Bank Acct]],Table147[[#Headers],[Amount]]:Table147[[#This Row],[Amount]]),"") ->  | G75: =IF(Table147[[#This Row],[Bank Acct]]=LEFT(Table147[[#Headers],[WF Balance]],2),SUMIF(Table147[[#Headers],[Bank Acct]]:Table147[[#This Row],[Bank Acct]],Table147[[#This Row],[Bank Acct]],Table147[[#Headers],[Amount]]:Table147[[#This Row],[Amount]]),"") -> 3986.29 | H75: =IFERROR(INDEX([1]Lookup!$B$2:$C$7,MATCH(RIGHT(TRIM(Table147[[#This Row],[Description]]),4),[1]Lookup!$B$2:$B$7,0),2),"") ->  | J75: Reimbursement | K75: 240307 - ANG Invoice 2024-9002 (with receipts).pdf
A76: WF | B76: 2024-03-07 | C76: ONLINE TRANSFER TO COLLIVER F REF #IB0MH64FQ8 CHECKING ANG INVOICE 2024.9004 | D76: IT Services/Supplies | E76: -521.47 | F76: =IF(Table147[[#This Row],[Bank Acct]]=LEFT(Table147[[#Headers],[BA Balance]],2),SUMIF(Table147[[#Headers],[Bank Acct]]:Table147[[#This Row],[Bank Acct]],Table147[[#This Row],[Bank Acct]],Table147[[#Headers],[Amount]]:Table147[[#This Row],[Amount]]),"") ->  | G76: =IF(Table147[[#This Row],[Bank Acct]]=LEFT(Table147[[#Headers],[WF Balance]],2),SUMIF(Table147[[#Headers],[Bank Acct]]:Table147[[#This Row],[Bank Acct]],Table147[[#This Row],[Bank Acct]],Table147[[#Headers],[Amount]]:Table147[[#This Row],[Amount]]),"") -> 3464.82 | H76: =IFERROR(INDEX([1]Lookup!$B$2:$C$7,MATCH(RIGHT(TRIM(Table147[[#This Row],[Description]]),4),[1]Lookup!$B$2:$B$7,0),2),"") ->  | J76: Reimbursement | K76: 240307 - ANG Invoice 2024-9004 (with receipts).pdf
A77: WF | B77: 2024-03-13 | C77: RECURRING PAYMENT AUTHORIZED ON 03/12 STK*Shutterstock 866-6633954 NY S584072273781855 CARD 2086 | D77: IT Services/Supplies | E77: -29 | F77: =IF(Table147[[#This Row],[Bank Acct]]=LEFT(Table147[[#Headers],[BA Balance]],2),SUMIF(Table147[[#Headers],[Bank Acct]]:Table147[[#This Row],[Bank Acct]],Table147[[#This Row],[Bank Acct]],Table147[[#Headers],[Amount]]:Table147[[#This Row],[Amount]]),"") ->  | G77: =IF(Table147[[#This Row],[Bank Acct]]=LEFT(Table147[[#Headers],[WF Balance]],2),SUMIF(Table147[[#Headers],[Bank Acct]]:Table147[[#This Row],[Bank Acct]],Table147[[#This Row],[Bank Acct]],Table147[[#Headers],[Amount]]:Table147[[#This Row],[Amount]]),"") -> 3435.82 | H77: =IFERROR(INDEX([1]Lookup!$B$2:$C$7,MATCH(RIGHT(TRIM(Table147[[#This Row],[Description]]),4),[1]Lookup!$B$2:$B$7,0),2),"") -> LRC | I77: Web Hosting | J77: Images | K77: 240312 - Shutterstock CS-0F1ED-AC18.pdf
A78: WF | B78: 2024-03-18 | C78: RECURRING PAYMENT AUTHORIZED ON 03/16 AIOSEO.COM - DE HTTPSAIOSEO.C FL S464076608818000 CARD 5623 | D78: IT Services/Supplies | E78: -249 | F78: =IF(Table147[[#This Row],[Bank Acct]]=LEFT(Table147[[#Headers],[BA Balance]],2),SUMIF(Table147[[#Headers],[Bank Acct]]:Table147[[#This Row],[Bank Acct]],Table147[[#This Row],[Bank Acct]],Table147[[#Headers],[Amount]]:Table147[[#This Row],[Amount]]),"") ->  | G78: =IF(Table147[[#This Row],[Bank Acct]]=LEFT(Table147[[#Headers],[WF Balance]],2),SUMIF(Table147[[#Headers],[Bank Acct]]:Table147[[#This Row],[Bank Acct]],Table147[[#This Row],[Bank Acct]],Table147[[#Headers],[Amount]]:Table147[[#This Row],[Amount]]),"") -> 3186.82 | H78: =IFERROR(INDEX([1]Lookup!$B$2:$C$7,MATCH(RIGHT(TRIM(Table147[[#This Row],[Description]]),4),[1]Lookup!$B$2:$B$7,0),2),"") -> FWC | I78: Web Hosting | J78: Web Tools
A79: WF | B79: 2024-03-19 | C79: RECURRING PAYMENT AUTHORIZED ON 03/18 Mailchimp 678-9990141 GA S584078398775409 CARD 2086 | D79: IT Services/Supplies | E79: -13.73 | F79: =IF(Table147[[#This Row],[Bank Acct]]=LEFT(Table147[[#Headers],[BA Balance]],2),SUMIF(Table147[[#Headers],[Bank Acct]]:Table147[[#This Row],[Bank Acct]],Table147[[#This Row],[Bank Acct]],Table147[[#Headers],[Amount]]:Table147[[#This Row],[Amount]]),"") ->  | G79: =IF(Table147[[#This Row],[Bank Acct]]=LEFT(Table147[[#Headers],[WF Balance]],2),SUMIF(Table147[[#Headers],[Bank Acct]]:Table147[[#This Row],[Bank Acct]],Table147[[#This Row],[Bank Acct]],Table147[[#Headers],[Amount]]:Table147[[#This Row],[Amount]]),"") -> 3173.09 | H79: =IFERROR(INDEX([1]Lookup!$B$2:$C$7,MATCH(RIGHT(TRIM(Table147[[#This Row],[Description]]),4),[1]Lookup!$B$2:$B$7,0),2),"") -> LRC | I79: AE | J79: Mailchimp | K79: 240318 - AE - Mailchimp Essentials MC20487766.pdf
A80: WF | B80: 2024-03-21 | C80: RECURRING PAYMENT AUTHORIZED ON 03/20 Mailchimp 678-9990141 GA S464080382983322 CARD 2086 | D80: IT Services/Supplies | E80: -75 | F80: =IF(Table147[[#This Row],[Bank Acct]]=LEFT(Table147[[#Headers],[BA Balance]],2),SUMIF(Table147[[#Headers],[Bank Acct]]:Table147[[#This Row],[Bank Acct]],Table147[[#This Row],[Bank Acct]],Table147[[#Headers],[Amount]]:Table147[[#This Row],[Amount]]),"") ->  | G80: =IF(Table147[[#This Row],[Bank Acct]]=LEFT(Table147[[#Headers],[WF Balance]],2),SUMIF(Table147[[#Headers],[Bank Acct]]:Table147[[#This Row],[Bank Acct]],Table147[[#This Row],[Bank Acct]],Table147[[#Headers],[Amount]]:Table147[[#This Row],[Amount]]),"") -> 3098.09 | H80: =IFERROR(INDEX([1]Lookup!$B$2:$C$7,MATCH(RIGHT(TRIM(Table147[[#This Row],[Description]]),4),[1]Lookup!$B$2:$B$7,0),2),"") -> LRC | I80: Peregrine | J80: Mailchimp | K80: 240320 - Peregrine - Mailchimp Essentials MC20501058.pdf
A81: WF | B81: 2024-03-21 | C81: RECURRING PAYMENT AUTHORIZED ON 03/20 POWERDMARC HTTPSPOWERDMA DE S304081081458778 CARD 5623 | D81: IT Services/Supplies | E81: -45 | F81: =IF(Table147[[#This Row],[Bank Acct]]=LEFT(Table147[[#Headers],[BA Balance]],2),SUMIF(Table147[[#Headers],[Bank Acct]]:Table147[[#This Row],[Bank Acct]],Table147[[#This Row],[Bank Acct]],Table147[[#Headers],[Amount]]:Table147[[#This Row],[Amount]]),"") ->  | G81: =IF(Table147[[#This Row],[Bank Acct]]=LEFT(Table147[[#Headers],[WF Balance]],2),SUMIF(Table147[[#Headers],[Bank Acct]]:Table147[[#This Row],[Bank Acct]],Table147[[#This Row],[Bank Acct]],Table147[[#Headers],[Amount]]:Table147[[#This Row],[Amount]]),"") -> 3053.09 | H81: =IFERROR(INDEX([1]Lookup!$B$2:$C$7,MATCH(RIGHT(TRIM(Table147[[#This Row],[Description]]),4),[1]Lookup!$B$2:$B$7,0),2),"") -> FWC | I81: Web Hosting | J81: Web Hosting
A82: WF | B82: 2024-03-25 | C82: RECURRING PAYMENT AUTHORIZED ON 03/24 FREEMIUS* MEDIA SY HTTPSFREEMIUS DE S464084578208249 CARD 5623 | D82: IT Services/Supplies | E82: -14.99 | F82: =IF(Table147[[#This Row],[Bank Acct]]=LEFT(Table147[[#Headers],[BA Balance]],2),SUMIF(Table147[[#Headers],[Bank Acct]]:Table147[[#This Row],[Bank Acct]],Table147[[#This Row],[Bank Acct]],Table147[[#Headers],[Amount]]:Table147[[#This Row],[Amount]]),"") ->  | G82: =IF(Table147[[#This Row],[Bank Acct]]=LEFT(Table147[[#Headers],[WF Balance]],2),SUMIF(Table147[[#Headers],[Bank Acct]]:Table147[[#This Row],[Bank Acct]],Table147[[#This Row],[Bank Acct]],Table147[[#Headers],[Amount]]:Table147[[#This Row],[Amount]]),"") -> 3038.1 | H82: =IFERROR(INDEX([1]Lookup!$B$2:$C$7,MATCH(RIGHT(TRIM(Table147[[#This Row],[Description]]),4),[1]Lookup!$B$2:$B$7,0),2),"") -> FWC | I82: Web Hosting | J82: Web Tools
A83: BA | B83: 2024-04-02 | C83: STK*Shutterstock 04/02 PURCHASE 8666633954 NY DEBIT CARD *7411 | D83: IT Services/Supplies | E83: -49 | F83: =IF(Table147[[#This Row],[Bank Acct]]=LEFT(Table147[[#Headers],[BA Balance]],2),SUMIF(Table147[[#Headers],[Bank Acct]]:Table147[[#This Row],[Bank Acct]],Table147[[#This Row],[Bank Acct]],Table147[[#Headers],[Amount]]:Table147[[#This Row],[Amount]]),"") -> -377.77 | G83: =IF(Table147[[#This Row],[Bank Acct]]=LEFT(Table147[[#Headers],[WF Balance]],2),SUMIF(Table147[[#Headers],[Bank Acct]]:Table147[[#This Row],[Bank Acct]],Table147[[#This Row],[Bank Acct]],Table147[[#Headers],[Amount]]:Table147[[#This Row],[Amount]]),"") ->  | H83: =IFERROR(INDEX([1]Lookup!$B$2:$C$7,MATCH(RIGHT(TRIM(Table147[[#This Row],[Description]]),4),[1]Lookup!$B$2:$B$7,0),2),"") -> LRC | I83: Web Hosting | J83: Images | K83: Missing receipt
A84: WF | B84: 2024-04-03 | C84: PURCHASE AUTHORIZED ON 04/02 PADDLE.NET* PLUGIN PADDLE.COM NY S384093485840347 CARD 5623 | D84: IT Services/Supplies | E84: -16.29 | F84: =IF(Table147[[#This Row],[Bank Acct]]=LEFT(Table147[[#Headers],[BA Balance]],2),SUMIF(Table147[[#Headers],[Bank Acct]]:Table147[[#This Row],[Bank Acct]],Table147[[#This Row],[Bank Acct]],Table147[[#Headers],[Amount]]:Table147[[#This Row],[Amount]]),"") ->  | G84: =IF(Table147[[#This Row],[Bank Acct]]=LEFT(Table147[[#Headers],[WF Balance]],2),SUMIF(Table147[[#Headers],[Bank Acct]]:Table147[[#This Row],[Bank Acct]],Table147[[#This Row],[Bank Acct]],Table147[[#Headers],[Amount]]:Table147[[#This Row],[Amount]]),"") -> 3021.81 | H84: =IFERROR(INDEX([1]Lookup!$B$2:$C$7,MATCH(RIGHT(TRIM(Table147[[#This Row],[Description]]),4),[1]Lookup!$B$2:$B$7,0),2),"") -> FWC | I84: Web Hosting | J84: Web Tools
A85: WF | B85: 2024-04-03 | C85: RECURRING PAYMENT AUTHORIZED ON 04/02 CROCOBLOCK.COM HTTPSCROCOBLO FL S464093522839830 CARD 5623 | D85: IT Services/Supplies | E85: -88 | F85: =IF(Table147[[#This Row],[Bank Acct]]=LEFT(Table147[[#Headers],[BA Balance]],2),SUMIF(Table147[[#Headers],[Bank Acct]]:Table147[[#This Row],[Bank Acct]],Table147[[#This Row],[Bank Acct]],Table147[[#Headers],[Amount]]:Table147[[#This Row],[Amount]]),"") ->  | G85: =IF(Table147[[#This Row],[Bank Acct]]=LEFT(Table147[[#Headers],[WF Balance]],2),SUMIF(Table147[[#Headers],[Bank Acct]]:Table147[[#This Row],[Bank Acct]],Table147[[#This Row],[Bank Acct]],Table147[[#Headers],[Amount]]:Table147[[#This Row],[Amount]]),"") -> 2933.81 | H85: =IFERROR(INDEX([1]Lookup!$B$2:$C$7,MATCH(RIGHT(TRIM(Table147[[#This Row],[Description]]),4),[1]Lookup!$B$2:$B$7,0),2),"") -> FWC | I85: Web Hosting | J85: Web Tools
A86: WF | B86: 2024-04-04 | C86: ONLINE TRANSFER TO COLLIVER F REF #IB0MRRLLFZ CHECKING 240403 ANG INVOICE 20249005 | D86: IT Services/Supplies | E86: -701.18 | F86: =IF(Table147[[#This Row],[Bank Acct]]=LEFT(Table147[[#Headers],[BA Balance]],2),SUMIF(Table147[[#Headers],[Bank Acct]]:Table147[[#This Row],[Bank Acct]],Table147[[#This Row],[Bank Acct]],Table147[[#Headers],[Amount]]:Table147[[#This Row],[Amount]]),"") ->  | G86: =IF(Table147[[#This Row],[Bank Acct]]=LEFT(Table147[[#Headers],[WF Balance]],2),SUMIF(Table147[[#Headers],[Bank Acct]]:Table147[[#This Row],[Bank Acct]],Table147[[#This Row],[Bank Acct]],Table147[[#Headers],[Amount]]:Table147[[#This Row],[Amount]]),"") -> 2232.63 | H86: =IFERROR(INDEX([1]Lookup!$B$2:$C$7,MATCH(RIGHT(TRIM(Table147[[#This Row],[Description]]),4),[1]Lookup!$B$2:$B$7,0),2),"") ->  | J86: Reimbursement | K86: 240403 - ANG Invoice 2024-9005.pdf
A87: WF | B87: 2024-04-10 | C87: RECURRING PAYMENT REVERSAL ON 04/08 CROCOBLOCK.COM HTTPSCROCOBLO FL S304099752111462 CARD 5623 | D87: IT Services/Supplies | E87: 88 | F87: =IF(Table147[[#This Row],[Bank Acct]]=LEFT(Table147[[#Headers],[BA Balance]],2),SUMIF(Table147[[#Headers],[Bank Acct]]:Table147[[#This Row],[Bank Acct]],Table147[[#This Row],[Bank Acct]],Table147[[#Headers],[Amount]]:Table147[[#This Row],[Amount]]),"") ->  | G87: =IF(Table147[[#This Row],[Bank Acct]]=LEFT(Table147[[#Headers],[WF Balance]],2),SUMIF(Table147[[#Headers],[Bank Acct]]:Table147[[#This Row],[Bank Acct]],Table147[[#This Row],[Bank Acct]],Table147[[#Headers],[Amount]]:Table147[[#This Row],[Amount]]),"") -> 2320.63 | H87: =IFERROR(INDEX([1]Lookup!$B$2:$C$7,MATCH(RIGHT(TRIM(Table147[[#This Row],[Description]]),4),[1]Lookup!$B$2:$B$7,0),2),"") -> FWC | I87: Web Hosting | J87: Web Tools | K87: No invoice
A88: WF | B88: 2024-04-11 | C88: RECURRING PAYMENT AUTHORIZED ON 04/10 CROCOBLOCK.COM HTTPSCROCOBLO FL S464102018313362 CARD 5623 | D88: IT Services/Supplies | E88: -49 | F88: =IF(Table147[[#This Row],[Bank Acct]]=LEFT(Table147[[#Headers],[BA Balance]],2),SUMIF(Table147[[#Headers],[Bank Acct]]:Table147[[#This Row],[Bank Acct]],Table147[[#This Row],[Bank Acct]],Table147[[#Headers],[Amount]]:Table147[[#This Row],[Amount]]),"") ->  | G88: =IF(Table147[[#This Row],[Bank Acct]]=LEFT(Table147[[#Headers],[WF Balance]],2),SUMIF(Table147[[#Headers],[Bank Acct]]:Table147[[#This Row],[Bank Acct]],Table147[[#This Row],[Bank Acct]],Table147[[#Headers],[Amount]]:Table147[[#This Row],[Amount]]),"") -> 2271.63 | H88: =IFERROR(INDEX([1]Lookup!$B$2:$C$7,MATCH(RIGHT(TRIM(Table147[[#This Row],[Description]]),4),[1]Lookup!$B$2:$B$7,0),2),"") -> FWC | I88: Web Hosting | J88: Web Tools
A89: WF | B89: 2024-04-15 | C89: RECURRING PAYMENT AUTHORIZED ON 04/12 STK*Shutterstock 866-6633954 NY S584072273781855 CARD 2086 | D89: IT Services/Supplies | E89: -29 | F89: =IF(Table147[[#This Row],[Bank Acct]]=LEFT(Table147[[#Headers],[BA Balance]],2),SUMIF(Table147[[#Headers],[Bank Acct]]:Table147[[#This Row],[Bank Acct]],Table147[[#This Row],[Bank Acct]],Table147[[#Headers],[Amount]]:Table147[[#This Row],[Amount]]),"") ->  | G89: =IF(Table147[[#This Row],[Bank Acct]]=LEFT(Table147[[#Headers],[WF Balance]],2),SUMIF(Table147[[#Headers],[Bank Acct]]:Table147[[#This Row],[Bank Acct]],Table147[[#This Row],[Bank Acct]],Table147[[#Headers],[Amount]]:Table147[[#This Row],[Amount]]),"") -> 2242.63 | H89: =IFERROR(INDEX([1]Lookup!$B$2:$C$7,MATCH(RIGHT(TRIM(Table147[[#This Row],[Description]]),4),[1]Lookup!$B$2:$B$7,0),2),"") -> LRC | I89: Web Hosting | J89: Images | K89: 240412 - Shutterstock CS-04D82-0EED.pdf
A90: WF | B90: 2024-04-19 | C90: RECURRING PAYMENT AUTHORIZED ON 04/18 Mailchimp 678-9990141 GA S464109379579139 CARD 2086 | D90: IT Services/Supplies | E90: -13.73 | F90: =IF(Table147[[#This Row],[Bank Acct]]=LEFT(Table147[[#Headers],[BA Balance]],2),SUMIF(Table147[[#Headers],[Bank Acct]]:Table147[[#This Row],[Bank Acct]],Table147[[#This Row],[Bank Acct]],Table147[[#Headers],[Amount]]:Table147[[#This Row],[Amount]]),"") ->  | G90: =IF(Table147[[#This Row],[Bank Acct]]=LEFT(Table147[[#Headers],[WF Balance]],2),SUMIF(Table147[[#Headers],[Bank Acct]]:Table147[[#This Row],[Bank Acct]],Table147[[#This Row],[Bank Acct]],Table147[[#Headers],[Amount]]:Table147[[#This Row],[Amount]]),"") -> 2228.9 | H90: =IFERROR(INDEX([1]Lookup!$B$2:$C$7,MATCH(RIGHT(TRIM(Table147[[#This Row],[Description]]),4),[1]Lookup!$B$2:$B$7,0),2),"") -> LRC | I90: AE | J90: Mailchimp | K90: 240418 - AE - Mailchimp Essentials MC20694506.pdf
A91: WF | B91: 2024-04-22 | C91: RECURRING PAYMENT AUTHORIZED ON 04/20 Mailchimp 678-9990141 GA S584111409910024 CARD 2086 | D91: IT Services/Supplies | E91: -45 | F91: =IF(Table147[[#This Row],[Bank Acct]]=LEFT(Table147[[#Headers],[BA Balance]],2),SUMIF(Table147[[#Headers],[Bank Acct]]:Table147[[#This Row],[Bank Acct]],Table147[[#This Row],[Bank Acct]],Table147[[#Headers],[Amount]]:Table147[[#This Row],[Amount]]),"") ->  | G91: =IF(Table147[[#This Row],[Bank Acct]]=LEFT(Table147[[#Headers],[WF Balance]],2),SUMIF(Table147[[#Headers],[Bank Acct]]:Table147[[#This Row],[Bank Acct]],Table147[[#This Row],[Bank Acct]],Table147[[#Headers],[Amount]]:Table147[[#This Row],[Amount]]),"") -> 2183.9 | H91: =IFERROR(INDEX([1]Lookup!$B$2:$C$7,MATCH(RIGHT(TRIM(Table147[[#This Row],[Description]]),4),[1]Lookup!$B$2:$B$7,0),2),"") -> LRC | I91: AE | J91: Mailchimp | K91: Unknown
A92: WF | B92: 2024-04-22 | C92: RECURRING PAYMENT AUTHORIZED ON 04/20 POWERDMARC HTTPSPOWERDMA DE S464112077237218 CARD 5623 | D92: IT Services/Supplies | E92: -75 | F92: =IF(Table147[[#This Row],[Bank Acct]]=LEFT(Table147[[#Headers],[BA Balance]],2),SUMIF(Table147[[#Headers],[Bank Acct]]:Table147[[#This Row],[Bank Acct]],Table147[[#This Row],[Bank Acct]],Table147[[#Headers],[Amount]]:Table147[[#This Row],[Amount]]),"") ->  | G92: =IF(Table147[[#This Row],[Bank Acct]]=LEFT(Table147[[#Headers],[WF Balance]],2),SUMIF(Table147[[#Headers],[Bank Acct]]:Table147[[#This Row],[Bank Acct]],Table147[[#This Row],[Bank Acct]],Table147[[#Headers],[Amount]]:Table147[[#This Row],[Amount]]),"") -> 2108.9 | H92: =IFERROR(INDEX([1]Lookup!$B$2:$C$7,MATCH(RIGHT(TRIM(Table147[[#This Row],[Description]]),4),[1]Lookup!$B$2:$B$7,0),2),"") -> FWC | I92: Web Hosting | J92: Web Hosting | K92: 240420 - Peregrine - Mailchimp Essentials MC20709422.pdf
A93: WF | B93: 2024-04-25 | C93: RECURRING PAYMENT AUTHORIZED ON 04/24 FREEMIUS* MEDIA SY HTTPSFREEMIUS DE S464115578359525 CARD 5623 | D93: IT Services/Supplies | E93: -14.99 | F93: =IF(Table147[[#This Row],[Bank Acct]]=LEFT(Table147[[#Headers],[BA Balance]],2),SUMIF(Table147[[#Headers],[Bank Acct]]:Table147[[#This Row],[Bank Acct]],Table147[[#This Row],[Bank Acct]],Table147[[#Headers],[Amount]]:Table147[[#This Row],[Amount]]),"") ->  | G93: =IF(Table147[[#This Row],[Bank Acct]]=LEFT(Table147[[#Headers],[WF Balance]],2),SUMIF(Table147[[#Headers],[Bank Acct]]:Table147[[#This Row],[Bank Acct]],Table147[[#This Row],[Bank Acct]],Table147[[#Headers],[Amount]]:Table147[[#This Row],[Amount]]),"") -> 2093.91 | H93: =IFERROR(INDEX([1]Lookup!$B$2:$C$7,MATCH(RIGHT(TRIM(Table147[[#This Row],[Description]]),4),[1]Lookup!$B$2:$B$7,0),2),"") -> FWC | I93: Web Hosting | J93: Web Tools
A94: WF | B94: 2024-05-13 | C94: RECURRING PAYMENT AUTHORIZED ON 05/12 STK*Shutterstock 866-6633954 NY S584133273702119 CARD 2086 | D94: IT Services/Supplies | E94: -29 | F94: =IF(Table147[[#This Row],[Bank Acct]]=LEFT(Table147[[#Headers],[BA Balance]],2),SUMIF(Table147[[#Headers],[Bank Acct]]:Table147[[#This Row],[Bank Acct]],Table147[[#This Row],[Bank Acct]],Table147[[#Headers],[Amount]]:Table147[[#This Row],[Amount]]),"") ->  | G94: =IF(Table147[[#This Row],[Bank Acct]]=LEFT(Table147[[#Headers],[WF Balance]],2),SUMIF(Table147[[#Headers],[Bank Acct]]:Table147[[#This Row],[Bank Acct]],Table147[[#This Row],[Bank Acct]],Table147[[#Headers],[Amount]]:Table147[[#This Row],[Amount]]),"") -> 2064.91 | I94: Web Hosting | J94: Images | K94: 240512 - Shutterstock CS-08870-4D3D.pdf
A95: WF | B95: 2024-05-20 | C95: RECURRING PAYMENT AUTHORIZED ON 05/18 Mailchimp 678-9990141 GA S384139370490022 CARD 2086 | D95: IT Services/Supplies | E95: -13.73 | F95: =IF(Table147[[#This Row],[Bank Acct]]=LEFT(Table147[[#Headers],[BA Balance]],2),SUMIF(Table147[[#Headers],[Bank Acct]]:Table147[[#This Row],[Bank Acct]],Table147[[#This Row],[Bank Acct]],Table147[[#Headers],[Amount]]:Table147[[#This Row],[Amount]]),"") ->  | G95: =IF(Table147[[#This Row],[Bank Acct]]=LEFT(Table147[[#Headers],[WF Balance]],2),SUMIF(Table147[[#Headers],[Bank Acct]]:Table147[[#This Row],[Bank Acct]],Table147[[#This Row],[Bank Acct]],Table147[[#Headers],[Amount]]:Table147[[#This Row],[Amount]]),"") -> 2051.18 | H95: =IFERROR(INDEX([1]Lookup!$B$2:$C$7,MATCH(RIGHT(TRIM(Table147[[#This Row],[Description]]),4),[1]Lookup!$B$2:$B$7,0),2),"") -> LRC | I95: AE | J95: Mailchimp | K95: 240518 - AE - Mailchimp Essentials MC20897189.pdf
A96: WF | B96: 2024-05-21 | C96: RECURRING PAYMENT AUTHORIZED ON 05/20 Mailchimp 678-9990141 GA S304141391436612 CARD 2086 | D96: IT Services/Supplies | E96: -75 | F96: =IF(Table147[[#This Row],[Bank Acct]]=LEFT(Table147[[#Headers],[BA Balance]],2),SUMIF(Table147[[#Headers],[Bank Acct]]:Table147[[#This Row],[Bank Acct]],Table147[[#This Row],[Bank Acct]],Table147[[#Headers],[Amount]]:Table147[[#This Row],[Amount]]),"") ->  | G96: =IF(Table147[[#This Row],[Bank Acct]]=LEFT(Table147[[#Headers],[WF Balance]],2),SUMIF(Table147[[#Headers],[Bank Acct]]:Table147[[#This Row],[Bank Acct]],Table147[[#This Row],[Bank Acct]],Table147[[#Headers],[Amount]]:Table147[[#This Row],[Amount]]),"") -> 1976.18 | H96: =IFERROR(INDEX([1]Lookup!$B$2:$C$7,MATCH(RIGHT(TRIM(Table147[[#This Row],[Description]]),4),[1]Lookup!$B$2:$B$7,0),2),"") -> LRC | I96: Peregrine | J96: Mailchimp | K96: 240520 - Peregrine - Mailchimp Essentials MC20910213.pdf
A97: WF | B97: 2024-05-21 | C97: RECURRING PAYMENT AUTHORIZED ON 05/20 POWERDMARC HTTPSPOWERDMA DE S584142090448237 CARD 5623 | D97: IT Services/Supplies | E97: -45 | F97: =IF(Table147[[#This Row],[Bank Acct]]=LEFT(Table147[[#Headers],[BA Balance]],2),SUMIF(Table147[[#Headers],[Bank Acct]]:Table147[[#This Row],[Bank Acct]],Table147[[#This Row],[Bank Acct]],Table147[[#Headers],[Amount]]:Table147[[#This Row],[Amount]]),"") ->  | G97: =IF(Table147[[#This Row],[Bank Acct]]=LEFT(Table147[[#Headers],[WF Balance]],2),SUMIF(Table147[[#Headers],[Bank Acct]]:Table147[[#This Row],[Bank Acct]],Table147[[#This Row],[Bank Acct]],Table147[[#Headers],[Amount]]:Table147[[#This Row],[Amount]]),"") -> 1931.18 | I97: Web Hosting | J97: Web Hosting
A98: WF | B98: 2024-05-28 | C98: RECURRING PAYMENT AUTHORIZED ON 05/24 FREEMIUS* MEDIA SY HTTPSFREEMIUS DE S304145577987076 CARD 5623 | D98: IT Services/Supplies | E98: -14.99 | F98: =IF(Table147[[#This Row],[Bank Acct]]=LEFT(Table147[[#Headers],[BA Balance]],2),SUMIF(Table147[[#Headers],[Bank Acct]]:Table147[[#This Row],[Bank Acct]],Table147[[#This Row],[Bank Acct]],Table147[[#Headers],[Amount]]:Table147[[#This Row],[Amount]]),"") ->  | G98: =IF(Table147[[#This Row],[Bank Acct]]=LEFT(Table147[[#Headers],[WF Balance]],2),SUMIF(Table147[[#Headers],[Bank Acct]]:Table147[[#This Row],[Bank Acct]],Table147[[#This Row],[Bank Acct]],Table147[[#Headers],[Amount]]:Table147[[#This Row],[Amount]]),"") -> 1916.19 | I98: Web Hosting | J98: Web Tools
A99: WF | B99: 2024-05-29 | C99: RECURRING PAYMENT AUTHORIZED ON 05/28 COMPLIANZ B.V. GRONINGEN NLD S584149571201644 CARD 5623 | D99: IT Services/Supplies | E99: -359 | F99: =IF(Table147[[#This Row],[Bank Acct]]=LEFT(Table147[[#Headers],[BA Balance]],2),SUMIF(Table147[[#Headers],[Bank Acct]]:Table147[[#This Row],[Bank Acct]],Table147[[#This Row],[Bank Acct]],Table147[[#Headers],[Amount]]:Table147[[#This Row],[Amount]]),"") ->  | G99: =IF(Table147[[#This Row],[Bank Acct]]=LEFT(Table147[[#Headers],[WF Balance]],2),SUMIF(Table147[[#Headers],[Bank Acct]]:Table147[[#This Row],[Bank Acct]],Table147[[#This Row],[Bank Acct]],Table147[[#Headers],[Amount]]:Table147[[#This Row],[Amount]]),"") -> 1557.19 | I99: Web Hosting | J99: Web Tools
A100: WF | B100: 2024-06-06 | C100: RECURRING PAYMENT AUTHORIZED ON 06/05 ELEMENTOR HTTPSELEMENTO DE S584157597393645 CARD 5623 | D100: IT Services/Supplies | E100: -238.8 | F100: =IF(Table147[[#This Row],[Bank Acct]]=LEFT(Table147[[#Headers],[BA Balance]],2),SUMIF(Table147[[#Headers],[Bank Acct]]:Table147[[#This Row],[Bank Acct]],Table147[[#This Row],[Bank Acct]],Table147[[#Headers],[Amount]]:Table147[[#This Row],[Amount]]),"") ->  | G100: =IF(Table147[[#This Row],[Bank Acct]]=LEFT(Table147[[#Headers],[WF Balance]],2),SUMIF(Table147[[#Headers],[Bank Acct]]:Table147[[#This Row],[Bank Acct]],Table147[[#This Row],[Bank Acct]],Table147[[#Headers],[Amount]]:Table147[[#This Row],[Amount]]),"") -> 1318.39 | I100: Web Hosting | J100: Web Tools
A101: WF | B101: 2024-06-13 | C101: RECURRING PAYMENT AUTHORIZED ON 06/12 STK*Shutterstock 866-6633954 NY S304164273606856 CARD 2086 | D101: IT Services/Supplies | E101: -29 | F101: =IF(Table147[[#This Row],[Bank Acct]]=LEFT(Table147[[#Headers],[BA Balance]],2),SUMIF(Table147[[#Headers],[Bank Acct]]:Table147[[#This Row],[Bank Acct]],Table147[[#This Row],[Bank Acct]],Table147[[#Headers],[Amount]]:Table147[[#This Row],[Amount]]),"") ->  | G101: =IF(Table147[[#This Row],[Bank Acct]]=LEFT(Table147[[#Headers],[WF Balance]],2),SUMIF(Table147[[#Headers],[Bank Acct]]:Table147[[#This Row],[Bank Acct]],Table147[[#This Row],[Bank Acct]],Table147[[#Headers],[Amount]]:Table147[[#This Row],[Amount]]),"") -> 1289.39 | I101: Web Hosting | J101: Images | K101: 240612 - Shutterstock CS-0C0DD-0265.pdf
A102: WF | B102: 2024-06-20 | C102: RECURRING PAYMENT AUTHORIZED ON 06/18 Mailchimp 678-9990141 GA S304170349240906 CARD 2086 | D102: IT Services/Supplies | E102: -13.73 | F102: =IF(Table147[[#This Row],[Bank Acct]]=LEFT(Table147[[#Headers],[BA Balance]],2),SUMIF(Table147[[#Headers],[Bank Acct]]:Table147[[#This Row],[Bank Acct]],Table147[[#This Row],[Bank Acct]],Table147[[#Headers],[Amount]]:Table147[[#This Row],[Amount]]),"") ->  | G102: =IF(Table147[[#This Row],[Bank Acct]]=LEFT(Table147[[#Headers],[WF Balance]],2),SUMIF(Table147[[#Headers],[Bank Acct]]:Table147[[#This Row],[Bank Acct]],Table147[[#This Row],[Bank Acct]],Table147[[#Headers],[Amount]]:Table147[[#This Row],[Amount]]),"") -> 1275.66 | H102: =IFERROR(INDEX([1]Lookup!$B$2:$C$7,MATCH(RIGHT(TRIM(Table147[[#This Row],[Description]]),4),[1]Lookup!$B$2:$B$7,0),2),"") -> LRC | I102: AE | J102: Mailchimp | K102: 240618 - AE - Mailchimp Essentials MC21099378.pdf
A103: WF | B103: 2024-06-21 | C103: RECURRING PAYMENT AUTHORIZED ON 06/20 Mailchimp 678-9990141 GA S304172396977484 CARD 2086 | D103: IT Services/Supplies | E103: -75 | F103: =IF(Table147[[#This Row],[Bank Acct]]=LEFT(Table147[[#Headers],[BA Balance]],2),SUMIF(Table147[[#Headers],[Bank Acct]]:Table147[[#This Row],[Bank Acct]],Table147[[#This Row],[Bank Acct]],Table147[[#Headers],[Amount]]:Table147[[#This Row],[Amount]]),"") ->  | G103: =IF(Table147[[#This Row],[Bank Acct]]=LEFT(Table147[[#Headers],[WF Balance]],2),SUMIF(Table147[[#Headers],[Bank Acct]]:Table147[[#This Row],[Bank Acct]],Table147[[#This Row],[Bank Acct]],Table147[[#Headers],[Amount]]:Table147[[#This Row],[Amount]]),"") -> 1200.66 | H103: =IFERROR(INDEX([1]Lookup!$B$2:$C$7,MATCH(RIGHT(TRIM(Table147[[#This Row],[Description]]),4),[1]Lookup!$B$2:$B$7,0),2),"") -> LRC | I103: Peregrine | J103: Mailchimp | K103: 240620 - Peregrine - Mailchimp Essentials MC21115926.pdf
A104: WF | B104: 2024-06-21 | C104: RECURRING PAYMENT AUTHORIZED ON 06/20 POWERDMARC HTTPSPOWERDMA DE S304173084026828 CARD 5623 | D104: IT Services/Supplies | E104: -45 | F104: =IF(Table147[[#This Row],[Bank Acct]]=LEFT(Table147[[#Headers],[BA Balance]],2),SUMIF(Table147[[#Headers],[Bank Acct]]:Table147[[#This Row],[Bank Acct]],Table147[[#This Row],[Bank Acct]],Table147[[#Headers],[Amount]]:Table147[[#This Row],[Amount]]),"") ->  | G104: =IF(Table147[[#This Row],[Bank Acct]]=LEFT(Table147[[#Headers],[WF Balance]],2),SUMIF(Table147[[#Headers],[Bank Acct]]:Table147[[#This Row],[Bank Acct]],Table147[[#This Row],[Bank Acct]],Table147[[#Headers],[Amount]]:Table147[[#This Row],[Amount]]),"") -> 1155.66 | I104: Web Hosting | J104: Web Hosting
A105: WF | B105: 2024-06-25 | C105: RECURRING PAYMENT AUTHORIZED ON 06/24 FREEMIUS* MEDIA SY HTTPSFREEMIUS DE S384176577756341 CARD 5623 | D105: IT Services/Supplies | E105: -14.99 | F105: =IF(Table147[[#This Row],[Bank Acct]]=LEFT(Table147[[#Headers],[BA Balance]],2),SUMIF(Table147[[#Headers],[Bank Acct]]:Table147[[#This Row],[Bank Acct]],Table147[[#This Row],[Bank Acct]],Table147[[#Headers],[Amount]]:Table147[[#This Row],[Amount]]),"") ->  | G105: =IF(Table147[[#This Row],[Bank Acct]]=LEFT(Table147[[#Headers],[WF Balance]],2),SUMIF(Table147[[#Headers],[Bank Acct]]:Table147[[#This Row],[Bank Acct]],Table147[[#This Row],[Bank Acct]],Table147[[#Headers],[Amount]]:Table147[[#This Row],[Amount]]),"") -> 1140.67 | I105: Web Hosting | J105: Web Hosting
A106: WF | B106: 2024-07-15 | C106: RECURRING PAYMENT AUTHORIZED ON 07/12 STK*Shutterstock 866-6633954 NY S464194273627728 CARD 2086 | D106: IT Services/Supplies | E106: -29 | F106: =IF(Table147[[#This Row],[Bank Acct]]=LEFT(Table147[[#Headers],[BA Balance]],2),SUMIF(Table147[[#Headers],[Bank Acct]]:Table147[[#This Row],[Bank Acct]],Table147[[#This Row],[Bank Acct]],Table147[[#Headers],[Amount]]:Table147[[#This Row],[Amount]]),"") ->  | G106: =IF(Table147[[#This Row],[Bank Acct]]=LEFT(Table147[[#Headers],[WF Balance]],2),SUMIF(Table147[[#Headers],[Bank Acct]]:Table147[[#This Row],[Bank Acct]],Table147[[#This Row],[Bank Acct]],Table147[[#Headers],[Amount]]:Table147[[#This Row],[Amount]]),"") -> 1111.67 | I106: Web Hosting | J106: Images | K106: 240712 - Shutterstock CS-0BBA6-2F55.pdf
A107: WF | B107: 2024-07-19 | C107: RECURRING PAYMENT AUTHORIZED ON 07/18 Mailchimp 678-9990141 GA S464200383987845 CARD 2086 | D107: IT Services/Supplies | E107: -13.73 | F107: =IF(Table147[[#This Row],[Bank Acct]]=LEFT(Table147[[#Headers],[BA Balance]],2),SUMIF(Table147[[#Headers],[Bank Acct]]:Table147[[#This Row],[Bank Acct]],Table147[[#This Row],[Bank Acct]],Table147[[#Headers],[Amount]]:Table147[[#This Row],[Amount]]),"") ->  | G107: =IF(Table147[[#This Row],[Bank Acct]]=LEFT(Table147[[#Headers],[WF Balance]],2),SUMIF(Table147[[#Headers],[Bank Acct]]:Table147[[#This Row],[Bank Acct]],Table147[[#This Row],[Bank Acct]],Table147[[#Headers],[Amount]]:Table147[[#This Row],[Amount]]),"") -> 1097.94 | H107: =IFERROR(INDEX([1]Lookup!$B$2:$C$7,MATCH(RIGHT(TRIM(Table147[[#This Row],[Description]]),4),[1]Lookup!$B$2:$B$7,0),2),"") -> LRC | I107: AE | J107: Mailchimp | K107: 240718 - AE - Mailchimp Essentials MC21299686.pdf
A108: WF | B108: 2024-07-22 | C108: RECURRING PAYMENT AUTHORIZED ON 07/20 Mailchimp 678-9990141 GA S464202391077140 CARD 2086 | D108: IT Services/Supplies | E108: -75 | F108: =IF(Table147[[#This Row],[Bank Acct]]=LEFT(Table147[[#Headers],[BA Balance]],2),SUMIF(Table147[[#Headers],[Bank Acct]]:Table147[[#This Row],[Bank Acct]],Table147[[#This Row],[Bank Acct]],Table147[[#Headers],[Amount]]:Table147[[#This Row],[Amount]]),"") ->  | G108: =IF(Table147[[#This Row],[Bank Acct]]=LEFT(Table147[[#Headers],[WF Balance]],2),SUMIF(Table147[[#Headers],[Bank Acct]]:Table147[[#This Row],[Bank Acct]],Table147[[#This Row],[Bank Acct]],Table147[[#Headers],[Amount]]:Table147[[#This Row],[Amount]]),"") -> 1022.94 | H108: =IFERROR(INDEX([1]Lookup!$B$2:$C$7,MATCH(RIGHT(TRIM(Table147[[#This Row],[Description]]),4),[1]Lookup!$B$2:$B$7,0),2),"") -> LRC | I108: Peregrine | J108: Mailchimp | K108: 240720 - Peregrine - Mailchimp Essentials MC21313542.pdf
A109: WF | B109: 2024-07-22 | C109: RECURRING PAYMENT AUTHORIZED ON 07/20 POWERDMARC HTTPSPOWERDMA DE S304203078857224 CARD 5623 | D109: IT Services/Supplies | E109: -45 | F109: =IF(Table147[[#This Row],[Bank Acct]]=LEFT(Table147[[#Headers],[BA Balance]],2),SUMIF(Table147[[#Headers],[Bank Acct]]:Table147[[#This Row],[Bank Acct]],Table147[[#This Row],[Bank Acct]],Table147[[#Headers],[Amount]]:Table147[[#This Row],[Amount]]),"") ->  | G109: =IF(Table147[[#This Row],[Bank Acct]]=LEFT(Table147[[#Headers],[WF Balance]],2),SUMIF(Table147[[#Headers],[Bank Acct]]:Table147[[#This Row],[Bank Acct]],Table147[[#This Row],[Bank Acct]],Table147[[#Headers],[Amount]]:Table147[[#This Row],[Amount]]),"") -> 977.94 | I109: Web Hosting | J109: Web Hosting
A110: WF | B110: 2024-07-25 | C110: RECURRING PAYMENT AUTHORIZED ON 07/24 FREEMIUS* MEDIA SY HTTPSFREEMIUS DE S584206579530736 CARD 5623 | D110: IT Services/Supplies | E110: -14.99 | F110: =IF(Table147[[#This Row],[Bank Acct]]=LEFT(Table147[[#Headers],[BA Balance]],2),SUMIF(Table147[[#Headers],[Bank Acct]]:Table147[[#This Row],[Bank Acct]],Table147[[#This Row],[Bank Acct]],Table147[[#Headers],[Amount]]:Table147[[#This Row],[Amount]]),"") ->  | G110: =IF(Table147[[#This Row],[Bank Acct]]=LEFT(Table147[[#Headers],[WF Balance]],2),SUMIF(Table147[[#Headers],[Bank Acct]]:Table147[[#This Row],[Bank Acct]],Table147[[#This Row],[Bank Acct]],Table147[[#Headers],[Amount]]:Table147[[#This Row],[Amount]]),"") -> 962.95 | I110: Web Hosting | J110: Web Hosting
A111: WF | B111: 2024-08-13 | C111: RECURRING PAYMENT AUTHORIZED ON 08/12 STK*Shutterstock 866-6633954 NY S384225273801311 CARD 2086 | D111: IT Services/Supplies | E111: -29 | F111: =IF(Table147[[#This Row],[Bank Acct]]=LEFT(Table147[[#Headers],[BA Balance]],2),SUMIF(Table147[[#Headers],[Bank Acct]]:Table147[[#This Row],[Bank Acct]],Table147[[#This Row],[Bank Acct]],Table147[[#Headers],[Amount]]:Table147[[#This Row],[Amount]]),"") ->  | G111: =IF(Table147[[#This Row],[Bank Acct]]=LEFT(Table147[[#Headers],[WF Balance]],2),SUMIF(Table147[[#Headers],[Bank Acct]]:Table147[[#This Row],[Bank Acct]],Table147[[#This Row],[Bank Acct]],Table147[[#Headers],[Amount]]:Table147[[#This Row],[Amount]]),"") -> 933.95 | I111: Web Hosting | J111: Images | K111: 240812 - Shutterstock CS-06DA2-DCDE.pdf
A112: WF | B112: 2024-08-19 | C112: RECURRING PAYMENT AUTHORIZED ON 08/18 Mailchimp 678-9990141 GA S584231349677750 CARD 2086 | D112: IT Services/Supplies | E112: -13.73 | F112: =IF(Table147[[#This Row],[Bank Acct]]=LEFT(Table147[[#Headers],[BA Balance]],2),SUMIF(Table147[[#Headers],[Bank Acct]]:Table147[[#This Row],[Bank Acct]],Table147[[#This Row],[Bank Acct]],Table147[[#Headers],[Amount]]:Table147[[#This Row],[Amount]]),"") ->  | G112: =IF(Table147[[#This Row],[Bank Acct]]=LEFT(Table147[[#Headers],[WF Balance]],2),SUMIF(Table147[[#Headers],[Bank Acct]]:Table147[[#This Row],[Bank Acct]],Table147[[#This Row],[Bank Acct]],Table147[[#Headers],[Amount]]:Table147[[#This Row],[Amount]]),"") -> 920.22 | H112: =IFERROR(INDEX([1]Lookup!$B$2:$C$7,MATCH(RIGHT(TRIM(Table147[[#This Row],[Description]]),4),[1]Lookup!$B$2:$B$7,0),2),"") -> LRC | I112: AE | J112: Mailchimp | K112: 240818 - AE - Mailchimp Essentials MC21493338.pdf
A113: WF | B113: 2024-08-21 | C113: RECURRING PAYMENT AUTHORIZED ON 08/20 Mailchimp 678-9990141 GA S584233355345225 CARD 2086 | D113: IT Services/Supplies | E113: -75 | F113: =IF(Table147[[#This Row],[Bank Acct]]=LEFT(Table147[[#Headers],[BA Balance]],2),SUMIF(Table147[[#Headers],[Bank Acct]]:Table147[[#This Row],[Bank Acct]],Table147[[#This Row],[Bank Acct]],Table147[[#Headers],[Amount]]:Table147[[#This Row],[Amount]]),"") ->  | G113: =IF(Table147[[#This Row],[Bank Acct]]=LEFT(Table147[[#Headers],[WF Balance]],2),SUMIF(Table147[[#Headers],[Bank Acct]]:Table147[[#This Row],[Bank Acct]],Table147[[#This Row],[Bank Acct]],Table147[[#Headers],[Amount]]:Table147[[#This Row],[Amount]]),"") -> 845.22 | H113: =IFERROR(INDEX([1]Lookup!$B$2:$C$7,MATCH(RIGHT(TRIM(Table147[[#This Row],[Description]]),4),[1]Lookup!$B$2:$B$7,0),2),"") -> LRC | I113: Peregrine | J113: Mailchimp | K113: 240820 - Peregrine - Mailchimp Essentials MC21506366.pdf
A114: WF | B114: 2024-08-21 | C114: RECURRING PAYMENT AUTHORIZED ON 08/20 POWERDMARC HTTPSPOWERDMA DE S584234078660601 CARD 5623 | D114: IT Services/Supplies | E114: -45 | F114: =IF(Table147[[#This Row],[Bank Acct]]=LEFT(Table147[[#Headers],[BA Balance]],2),SUMIF(Table147[[#Headers],[Bank Acct]]:Table147[[#This Row],[Bank Acct]],Table147[[#This Row],[Bank Acct]],Table147[[#Headers],[Amount]]:Table147[[#This Row],[Amount]]),"") ->  | G114: =IF(Table147[[#This Row],[Bank Acct]]=LEFT(Table147[[#Headers],[WF Balance]],2),SUMIF(Table147[[#Headers],[Bank Acct]]:Table147[[#This Row],[Bank Acct]],Table147[[#This Row],[Bank Acct]],Table147[[#Headers],[Amount]]:Table147[[#This Row],[Amount]]),"") -> 800.22 | I114: Web Hosting | J114: Web Hosting
A115: WF | B115: 2024-09-13 | C115: RECURRING PAYMENT AUTHORIZED ON 09/12 STK*Shutterstock 866-6633954 NY S464256273583251 CARD 2086 | D115: IT Services/Supplies | E115: -29 | F115: =IF(Table147[[#This Row],[Bank Acct]]=LEFT(Table147[[#Headers],[BA Balance]],2),SUMIF(Table147[[#Headers],[Bank Acct]]:Table147[[#This Row],[Bank Acct]],Table147[[#This Row],[Bank Acct]],Table147[[#Headers],[Amount]]:Table147[[#This Row],[Amount]]),"") ->  | G115: =IF(Table147[[#This Row],[Bank Acct]]=LEFT(Table147[[#Headers],[WF Balance]],2),SUMIF(Table147[[#Headers],[Bank Acct]]:Table147[[#This Row],[Bank Acct]],Table147[[#This Row],[Bank Acct]],Table147[[#Headers],[Amount]]:Table147[[#This Row],[Amount]]),"") -> 771.22 | I115: Web Hosting | J115: Images | K115: 240912 - Shutterstock CS-0B91A-1362.pdf
A116: WF | B116: 2024-09-19 | C116: RECURRING PAYMENT AUTHORIZED ON 09/18 Mailchimp 678-9990141 GA S584262425663038 CARD 2086 | D116: IT Services/Supplies | E116: -13.73 | F116: =IF(Table147[[#This Row],[Bank Acct]]=LEFT(Table147[[#Headers],[BA Balance]],2),SUMIF(Table147[[#Headers],[Bank Acct]]:Table147[[#This Row],[Bank Acct]],Table147[[#This Row],[Bank Acct]],Table147[[#Headers],[Amount]]:Table147[[#This Row],[Amount]]),"") ->  | G116: =IF(Table147[[#This Row],[Bank Acct]]=LEFT(Table147[[#Headers],[WF Balance]],2),SUMIF(Table147[[#Headers],[Bank Acct]]:Table147[[#This Row],[Bank Acct]],Table147[[#This Row],[Bank Acct]],Table147[[#Headers],[Amount]]:Table147[[#This Row],[Amount]]),"") -> 757.49 | H116: =IFERROR(INDEX([1]Lookup!$B$2:$C$7,MATCH(RIGHT(TRIM(Table147[[#This Row],[Description]]),4),[1]Lookup!$B$2:$B$7,0),2),"") -> LRC | I116: AE | J116: Mailchimp | K116: 240918 - AE - Mailchimp Essentials MC21691302.pdf
A117: WF | B117: 2024-09-23 | C117: RECURRING PAYMENT AUTHORIZED ON 09/20 POWERDMARC HTTPSPOWERDMA DE S304265087180162 CARD 5623 | D117: IT Services/Supplies | E117: -45 | F117: =IF(Table147[[#This Row],[Bank Acct]]=LEFT(Table147[[#Headers],[BA Balance]],2),SUMIF(Table147[[#Headers],[Bank Acct]]:Table147[[#This Row],[Bank Acct]],Table147[[#This Row],[Bank Acct]],Table147[[#Headers],[Amount]]:Table147[[#This Row],[Amount]]),"") ->  | G117: =IF(Table147[[#This Row],[Bank Acct]]=LEFT(Table147[[#Headers],[WF Balance]],2),SUMIF(Table147[[#Headers],[Bank Acct]]:Table147[[#This Row],[Bank Acct]],Table147[[#This Row],[Bank Acct]],Table147[[#Headers],[Amount]]:Table147[[#This Row],[Amount]]),"") -> 712.49 | I117: Web Hosting | J117: Web Hosting
A118: WF | B118: 2024-10-07 | C118: RECURRING PAYMENT AUTHORIZED ON 10/06 DOWNLOADMONITOR BUCURESTI NLD S384280425897269 CARD 5623 | D118: IT Services/Supplies | E118: -159 | G118: =IF(Table147[[#This Row],[Bank Acct]]=LEFT(Table147[[#Headers],[WF Balance]],2),SUMIF(Table147[[#Headers],[Bank Acct]]:Table147[[#This Row],[Bank Acct]],Table147[[#This Row],[Bank Acct]],Table147[[#Headers],[Amount]]:Table147[[#This Row],[Amount]]),"") -> 553.49 | I118: Web Hosting | J118: Web Hosting
A119: WF | B119: 2024-10-15 | C119: RECURRING PAYMENT AUTHORIZED ON 10/12 STK*Shutterstock 866-6633954 NY S384286273736000 CARD 2086 | D119: IT Services/Supplies | E119: -29 | G119: =IF(Table147[[#This Row],[Bank Acct]]=LEFT(Table147[[#Headers],[WF Balance]],2),SUMIF(Table147[[#Headers],[Bank Acct]]:Table147[[#This Row],[Bank Acct]],Table147[[#This Row],[Bank Acct]],Table147[[#Headers],[Amount]]:Table147[[#This Row],[Amount]]),"") -> 524.49 | I119: Web Hosting | J119: Images | K119: 241012 - Shutterstock CS-0D34F-073A.pdf
A120: WF | B120: 2024-10-21 | C120: RECURRING PAYMENT AUTHORIZED ON 10/18 Mailchimp 678-9990141 GA S384292371736318 CARD 2086 | D120: IT Services/Supplies | E120: -13.73 | G120: =IF(Table147[[#This Row],[Bank Acct]]=LEFT(Table147[[#Headers],[WF Balance]],2),SUMIF(Table147[[#Headers],[Bank Acct]]:Table147[[#This Row],[Bank Acct]],Table147[[#This Row],[Bank Acct]],Table147[[#Headers],[Amount]]:Table147[[#This Row],[Amount]]),"") -> 510.76 | H120: =IFERROR(INDEX([1]Lookup!$B$2:$C$7,MATCH(RIGHT(TRIM(Table147[[#This Row],[Description]]),4),[1]Lookup!$B$2:$B$7,0),2),"") -> LRC | I120: AE | J120: Mailchimp | K120: 241018 - AE - Mailchimp Essentials MC21886743.pdf
A121: WF | B121: 2024-10-21 | C121: RECURRING PAYMENT AUTHORIZED ON 10/20 POWERDMARC HTTPSPOWERDMA DE S304295078878329 CARD 5623 | D121: IT Services/Supplies | E121: -45 | G121: =IF(Table147[[#This Row],[Bank Acct]]=LEFT(Table147[[#Headers],[WF Balance]],2),SUMIF(Table147[[#Headers],[Bank Acct]]:Table147[[#This Row],[Bank Acct]],Table147[[#This Row],[Bank Acct]],Table147[[#Headers],[Amount]]:Table147[[#This Row],[Amount]]),"") -> 465.76 | I121: Web Hosting | J121: Web Hosting
A122: WF | B122: 2024-11-06 | C122: RECURRING PAYMENT AUTHORIZED ON 11/05 SC* STACKSOCIAL STACKCOMMERCE CA S384310732549156 CARD 2086 | D122: IT Services/Supplies | E122: -119.8 | G122: =IF(Table147[[#This Row],[Bank Acct]]=LEFT(Table147[[#Headers],[WF Balance]],2),SUMIF(Table147[[#Headers],[Bank Acct]]:Table147[[#This Row],[Bank Acct]],Table147[[#This Row],[Bank Acct]],Table147[[#Headers],[Amount]]:Table147[[#This Row],[Amount]]),"") -> 345.96 | I122: AE Software
A123: WF | B123: 2024-11-13 | C123: RECURRING PAYMENT AUTHORIZED ON 11/11 STK*Shutterstock 866-6633954 NY S384317273610974 CARD 2086 | D123: IT Services/Supplies | E123: -29 | G123: =IF(Table147[[#This Row],[Bank Acct]]=LEFT(Table147[[#Headers],[WF Balance]],2),SUMIF(Table147[[#Headers],[Bank Acct]]:Table147[[#This Row],[Bank Acct]],Table147[[#This Row],[Bank Acct]],Table147[[#Headers],[Amount]]:Table147[[#This Row],[Amount]]),"") -> 316.96 | I123: Web Hosting | J123: Images | K123: 241112 - Shutterstock CS-087A3-DDCD.pdf
A124: WF | B124: 2024-11-19 | C124: RECURRING PAYMENT AUTHORIZED ON 11/17 Mailchimp 678-9990141 GA S584323252253377 CARD 2086 | D124: IT Services/Supplies | E124: -13.73 | G124: =IF(Table147[[#This Row],[Bank Acct]]=LEFT(Table147[[#Headers],[WF Balance]],2),SUMIF(Table147[[#Headers],[Bank Acct]]:Table147[[#This Row],[Bank Acct]],Table147[[#This Row],[Bank Acct]],Table147[[#Headers],[Amount]]:Table147[[#This Row],[Amount]]),"") -> 303.23 | H124: =IFERROR(INDEX([1]Lookup!$B$2:$C$7,MATCH(RIGHT(TRIM(Table147[[#This Row],[Description]]),4),[1]Lookup!$B$2:$B$7,0),2),"") -> LRC | I124: AE | J124: Mailchimp | K124: 241118 - AE - Mailchimp Essentials MC22090019.pdf
A125: WF | B125: 2024-11-20 | C125: RECURRING PAYMENT AUTHORIZED ON 11/20 RSS* REALLYSIMPLES GRONINGEN NLD S584325304646688 CARD 5623 | D125: IT Services/Supplies | E125: -209 | G125: =IF(Table147[[#This Row],[Bank Acct]]=LEFT(Table147[[#Headers],[WF Balance]],2),SUMIF(Table147[[#Headers],[Bank Acct]]:Table147[[#This Row],[Bank Acct]],Table147[[#This Row],[Bank Acct]],Table147[[#Headers],[Amount]]:Table147[[#This Row],[Amount]]),"") -> 94.23 | I125: Web Hosting | J125: Web Hosting
A126: WF | B126: 2024-11-21 | C126: RECURRING PAYMENT AUTHORIZED ON 11/20 POWERDMARC POWERDMARC.CO DE S584326081469958 CARD 5623 | D126: IT Services/Supplies | E126: -45 | G126: =IF(Table147[[#This Row],[Bank Acct]]=LEFT(Table147[[#Headers],[WF Balance]],2),SUMIF(Table147[[#Headers],[Bank Acct]]:Table147[[#This Row],[Bank Acct]],Table147[[#This Row],[Bank Acct]],Table147[[#Headers],[Amount]]:Table147[[#This Row],[Amount]]),"") -> 49.23 | I126: Web Hosting | J126: Web Hosting
A127: WF | B127: 2024-11-25 | C127: PURCHASE AUTHORIZED ON 11/24 Groupon, Inc. 312-2886424 IL S584329654432510 CARD 2086 | D127: IT Services/Supplies | E127: -31.92 | G127: =IF(Table147[[#This Row],[Bank Acct]]=LEFT(Table147[[#Headers],[WF Balance]],2),SUMIF(Table147[[#Headers],[Bank Acct]]:Table147[[#This Row],[Bank Acct]],Table147[[#This Row],[Bank Acct]],Table147[[#Headers],[Amount]]:Table147[[#This Row],[Amount]]),"") -> 17.31 | I127: AE | J127: FWC Office 2024 | K127: 241105 - StackSocial MS Products.pdf
A128: WF | B128: 2024-12-13 | C128: RECURRING PAYMENT AUTHORIZED ON 12/11 STK*Shutterstock 866-6633954 NY S584347273765926 CARD 2086 | D128: IT Services/Supplies | E128: -29 | G128: =IF(Table147[[#This Row],[Bank Acct]]=LEFT(Table147[[#Headers],[WF Balance]],2),SUMIF(Table147[[#Headers],[Bank Acct]]:Table147[[#This Row],[Bank Acct]],Table147[[#This Row],[Bank Acct]],Table147[[#Headers],[Amount]]:Table147[[#This Row],[Amount]]),"") -> -11.69 | I128: Web Hosting | J128: Images | K128: 241212 - Shutterstock CS-0FFC9-744F.pdf
A129: WF | B129: 2024-12-19 | C129: RECURRING PAYMENT AUTHORIZED ON 12/17 Mailchimp 678-9990141 GA S584353254329156 CARD 2086 | D129: IT Services/Supplies | E129: -13.73 | G129: =IF(Table147[[#This Row],[Bank Acct]]=LEFT(Table147[[#Headers],[WF Balance]],2),SUMIF(Table147[[#Headers],[Bank Acct]]:Table147[[#This Row],[Bank Acct]],Table147[[#This Row],[Bank Acct]],Table147[[#Headers],[Amount]]:Table147[[#This Row],[Amount]]),"") -> -25.42 | H129: =IFERROR(INDEX([1]Lookup!$B$2:$C$7,MATCH(RIGHT(TRIM(Table147[[#This Row],[Description]]),4),[1]Lookup!$B$2:$B$7,0),2),"") -> LRC | I129: AE | J129: Mailchimp | K129: 241218 - AE - Mailchimp Essentials MC22304635.pdf
A130: WF | B130: 2024-12-23 | C130: RECURRING PAYMENT AUTHORIZED ON 12/20 POWERDMARC POWERDMARC.CO DE S304356083997338 CARD 5623 | D130: IT Services/Supplies | E130: -45 | G130: =IF(Table147[[#This Row],[Bank Acct]]=LEFT(Table147[[#Headers],[WF Balance]],2),SUMIF(Table147[[#Headers],[Bank Acct]]:Table147[[#This Row],[Bank Acct]],Table147[[#This Row],[Bank Acct]],Table147[[#Headers],[Amount]]:Table147[[#This Row],[Amount]]),"") -> -70.42 | I130: Web Hosting | J130: Web Hosting
A131: WF | B131: 2024-12-24 | C131: PURCHASE AUTHORIZED ON 12/23 SP NERDUSED LONDON GBR S464358472602682 CARD 2086 | D131: IT Services/Supplies | E131: -39.98 | G131: =IF(Table147[[#This Row],[Bank Acct]]=LEFT(Table147[[#Headers],[WF Balance]],2),SUMIF(Table147[[#Headers],[Bank Acct]]:Table147[[#This Row],[Bank Acct]],Table147[[#This Row],[Bank Acct]],Table147[[#Headers],[Amount]]:Table147[[#This Row],[Amount]]),"") -> -110.4 | I131: AE | J131: Software
D132: IT Services/Supplies | E132: =SUM(E67:E131) -> -5235.2 | G132: =IF(Table147[[#This Row],[Bank Acct]]=LEFT(Table147[[#Headers],[WF Balance]],2),SUMIF(Table147[[#Headers],[Bank Acct]]:Table147[[#This Row],[Bank Acct]],Table147[[#This Row],[Bank Acct]],Table147[[#Headers],[Amount]]:Table147[[#This Row],[Amount]]),"") -> 
A133: BA | B133: 2024-01-02 | C133: STAMPS.COM 01/02 REFUND 8556082677 TX DEBIT CARD *7411 | D133: Office Expenses | E133: 4.34 | F133: =IF(Table147[[#This Row],[Bank Acct]]=LEFT(Table147[[#Headers],[BA Balance]],2),SUMIF(Table147[[#Headers],[Bank Acct]]:Table147[[#This Row],[Bank Acct]],Table147[[#This Row],[Bank Acct]],Table147[[#Headers],[Amount]]:Table147[[#This Row],[Amount]]),"") -> -373.43 | G133: =IF(Table147[[#This Row],[Bank Acct]]=LEFT(Table147[[#Headers],[WF Balance]],2),SUMIF(Table147[[#Headers],[Bank Acct]]:Table147[[#This Row],[Bank Acct]],Table147[[#This Row],[Bank Acct]],Table147[[#Headers],[Amount]]:Table147[[#This Row],[Amount]]),"") ->  | H133: =IFERROR(INDEX([1]Lookup!$B$2:$C$7,MATCH(RIGHT(TRIM(Table147[[#This Row],[Description]]),4),[1]Lookup!$B$2:$B$7,0),2),"") -> LRC | I133: AE | J133: Stamps | K133: None available - credit for fraction of month
D134: Office Expenses | E134: =SUM(E133) -> 4.34 | G134: =IF(Table147[[#This Row],[Bank Acct]]=LEFT(Table147[[#Headers],[WF Balance]],2),SUMIF(Table147[[#Headers],[Bank Acct]]:Table147[[#This Row],[Bank Acct]],Table147[[#This Row],[Bank Acct]],Table147[[#Headers],[Amount]]:Table147[[#This Row],[Amount]]),"") -> 
D136: TOTAL EXPENSES | E136: =SUM(E134+E132+E44+E33+E23+E3) -> -28612.01
D137: TOTAL INCOME | E137: =E66 -> 38328.18
D138: TOTAL DISTRIBUTIONS | E138: =E38 -> -10200
D140: Check Sum | E140: =SUM(E136:E138) -> -483.83
